Cogmind - Beta 12 *** ADVENTURER MODE // 2023.05.24 @ 22:32:47 Player: core_nxt Result: Core destroyed Performance ------------- Evolutions (8) 4000 Regions Visited (31) 6200 Robots Destroyed (582) 2910 Value Destroyed (27201) 27201 Prototype IDs (166) 3320 Alien Tech Used (3) 600 Bonus (15374) 15374 TOTAL SCORE: 59605 Bonus ------- High Alert Combat Kills 6442 Follower Combat Kills 655 Aligned with FarCom 300 Met Data Miner 300 Met Imprinter 300 Destroyed Z-Imprinter 1000 Triggered Deep Caves Wall 500 Exposed GOLEM Chamber 500 Met Warlord at Base 500 MAIN.C Attacked Warlord 500 Used Core Reset Matrix 3000 Met Sigix 2000 Friendly Fire -623 Cogmind --------- Core Integrity 0/1450 Matter 450/450 Energy 100/100 System Corruption 0% Temperature Cool (0) Movement Core (50) Location -2/Research Parts ------- > --- POWER (2) -------- (None) > --- PROPULSION (6) --- (None) > --- UTILITY (12) ----- (None) > --- WEAPON (4) ------- (None) > --- INVENTORY (5) ---- (None) Peak State ------------ > --- POWER ------------ Vortex Chain Reactor > --- PROPULSION ------- Improved Heavy Treads Enhanced Biometal Leg Enhanced Biometal Leg High-density Centrium Leg High-density Centrium Leg > --- UTILITY ---------- Experimental Cooling System High-capacity Storage Unit Advanced Matter Compressor Improved Trap Scanner Experimental Optical Array Experimental Sensor Array Advanced Signal Interpreter Experimental Targeting Computer Experimental Core Analyzer Experimental Power Shielding Improved Hacking Suite System Mapper > --- WEAPON ----------- Precision Phase Gun EMDS Compact Linear Accelerator > --- INVENTORY -------- Hybrid Antimatter Reactor Hybrid Antimatter Reactor Hybrid Antimatter Reactor Zionite Light DM Reactor Cooled Antimatter Reactor High-density Centrium Leg Advanced Matter Compressor Zionite Metafield Generator Experimental Target Analyzer Experimental Core Analyzer Recoil Nullifier Matter Filter Improved Kinecellerator Advanced Weapon Cycler Advanced Weapon Cycler Experimental Transmission Jammer Experimental EM Disruption Field Point Defense Array Advanced System Shield Authchip [Power] Advanced Component Analysis Suite Advanced System Restoration Module Advanced System Restoration Module Trap Reconfigurator Sensor Drone Bay GOLEM Unit Dimensional Node Initializer Dimensional Node Initializer Dimensional Node Initializer Transdimensional Reconstructor Transdimensional Reconstructor Transdimensional Reconstructor Transdimensional Reconstructor High-powered Transdimensional Reconstructor Vortex Driver Compact Linear Accelerator Compact Linear Accelerator Tiamat Missile Launcher Advanced Datajack Sigix Broadsword CR-A16's Pointy Stick Enhanced Force Lance Sigix Containment Pod Sigix Corpse Sigix Corpse [Rating: 235] Favorites ----------- Power Zionite Light DM Reactor Engine Ion Engine Power Core Enhanced Nuclear Core Reactor Zionite Light DM Reactor Propulsion Zionite Glidesys I Treads Improved Heavy Treads Leg High-density Centrium Leg Wheel Wheel Hover Unit Zionite Glidesys I Flight Unit Cooled Cesium-ion Thruster Utility High-capacity Storage Unit Device Experimental Sensor Array Storage High-capacity Storage Unit Processor Experimental Targeting Computer Hackware System Mapper Protection Experimental Power Shielding Weapon Precision Phase Gun Energy Gun Precision Phase Gun Energy Cannon Vortex Driver Ballistic Gun 8R-AWN's Boregun Ballistic Cannon Compact Linear Accelerator Launcher Precision Rocket Launcher Special Weapon Plasma Cutter Slashing Weapon Makeshift Sword Piercing Weapon CR-A16's Pointy Stick Special Melee Weapon Improved Datajack Build | -11 -10 -10 -10 -9 -8 -7 -7 -7 -7 -6 -6 -6 -6 -6 -6 -5 -5 -5 -5 -5 -4 -4 -4 -4 -4 -4 -4 -3 -3 -3 -2 ------- Run | Jun Mat Min Exi Min Mat Fac Low Low Dat Pro Fac Low Low Zio Dee Pro Fac Upp Upp War Pro Fac Was Fac Upp Upp Zhi Pro Res Qua Res Slots Evolved 16 | . . . . . 4 2 . . . . 2 . . . . . 2 . . . . 2 . . . . . . 2 . 2 Power 1 | . . . . . . . . . . . . . . . . . . . . . . . . . . . . . . . 1 Propulsion 3 | . . . . . 1 1 . . . . 2 . . . . . . . . . . . . . . . . . . . -1 Utility 10 | . . . . . 3 1 . . . . . . . . . . 2 . . . . 1 . . . . . . . . 3 Weapon 2 | . . . . . . . . . . . . . . . . . . . . . . 1 . . . . . . 2 . -1 Parts Attached 414 | . 7 6 11 . 23 18 2 3 . . 14 3 7 4 36 8 44 1 1 7 2 33 . 36 5 . 4 . 25 105 9 Power 40 | . 2 . 4 . 2 2 . 2 . . 4 . . . 3 1 3 . . . . . . 1 . . . . 2 13 1 Engine 8 | . 1 . . . . 2 . 1 . . 1 . . . 1 . 1 . . . . . . . . . . . . 1 . Core 11 | . 1 . 2 . 1 . . 1 . . 3 . . . 1 . . . . . . . . . . . . . . 2 . Reactor 21 | . . . 2 . 1 . . . . . . . . . 1 1 2 . . . . . . 1 . . . . 2 10 1 Propulsion 82 | . 1 2 3 . 4 5 . . . . 6 . . . 10 1 3 . 1 2 1 2 . 16 . . 2 . 12 11 . Treads 7 | . . 2 . . . . . . . . . . . . . . . . . . . . . . . . . . 3 2 . Leg 24 | . 1 . 3 . 3 1 . . . . . . . . 1 . . . . . . . . 5 . . . . 5 5 . Wheel 2 | . . . . . . . . . . . . . . . . . . . . . . . . . . . . . 1 1 . Hover 37 | . . . . . . . . . . . . . . . 9 1 3 . 1 2 1 2 . 11 . . 1 . 3 3 . Flight 12 | . . . . . 1 4 . . . . 6 . . . . . . . . . . . . . . . 1 . . . . Utility 163 | . 2 2 1 . 12 5 1 . . . 1 3 . 1 9 3 23 1 . 1 1 13 . 11 1 . 2 . 4 59 7 Device 102 | . 1 2 . . 7 4 1 . . . 1 2 . . 5 . 13 1 . 1 . 8 . 11 1 . . . 3 38 3 Storage 13 | . 1 . . . . . . . . . . . . . 1 . 2 . . . . 1 . . . . 1 . . 6 1 Processor 17 | . . . 1 . 2 . . . . . . 1 . 1 . . 1 . . . . 1 . . . . . . . 9 1 Hackware 6 | . . . . . 1 . . . . . . . . . . . 1 . . . . 1 . . . . . . . 2 1 Protection 25 | . . . . . 2 1 . . . . . . . . 3 3 6 . . . 1 2 . . . . 1 . 1 4 1 Artifact . | . . . . . . . . . . . . . . . . . . . . . . . . . . . . . . . . Weapon 129 | . 2 2 3 . 5 6 1 1 . . 3 . 7 3 14 3 15 . . 4 . 18 . 8 4 . . . 7 22 1 Energy Gun 53 | . 2 1 2 . 1 . . . . . . . 6 . 8 2 10 . . 2 . 8 . 1 1 . . . 5 4 . Energy Cannon 10 | . . . . . . . . . . . . . . . . . 1 . . 2 . 3 . . . . . . . 4 . Ballistic Gun 13 | . . . 1 . 4 4 . 1 . . . . . . . . . . . . . 1 . . . . . . . 2 . Ballistic Cannon 22 | . . . . . . 1 1 . . . . . . . . . 2 . . . . 2 . 6 2 . . . 2 6 . Launcher 5 | . . 1 . . . 1 . . . . 3 . . . . . . . . . . . . . . . . . . . . Special Weapon 4 | . . . . . . . . . . . . . . . 1 . . . . . . . . . 1 . . . . 2 . Impact Weapon . | . . . . . . . . . . . . . . . . . . . . . . . . . . . . . . . . Slashing Weapon 8 | . . . . . . . . . . . . . 1 1 5 . . . . . . . . . . . . . . 1 . Piercing Weapon 7 | . . . . . . . . . . . . . . . . 1 2 . . . . 1 . . . . . . . 2 1 Special Melee Weapon 7 | . . . . . . . . . . . . . . 2 . . . . . . . 3 . 1 . . . . . 1 . Unidentified Prototypes 64 | . . 2 6 . 9 6 . . . . 3 . . . 7 . 9 . . 2 . 8 . . . . 3 . 2 7 . Corrupted Parts 3 | . . . . . 2 . . . . . . . . . 1 . . . . . . . . . . . . . . . . System Corruption 11 | . . . . . 10 . . . . . . . . . 1 . . . . . . . . . . . . . . . . Parts Lost 73 | . 4 4 3 . 2 6 . 2 . . . . 2 . 3 2 14 . 1 . 2 2 . 7 . . . 1 1 . 17 Power 7 | . 1 1 . . . 2 . 1 . . . . . . . . . . . . . . . 1 . . . . . . 1 Propulsion 23 | . 1 1 2 . 1 2 . . . . . . . . 1 1 1 . 1 . 2 1 . 3 . . . 1 1 . 4 Utility 19 | . . . . . . . . . . . . . 1 . 1 . 7 . . . . . . 2 . . . . . . 8 Weapon 23 | . 2 2 1 . 1 2 . 1 . . . . 1 . 1 1 6 . . . . 1 . 1 . . . . . . 3 Highest Loss Streak 17 | . 4 3 1 . 1 2 . 2 . . . . 1 . 2 2 4 . 1 . 1 2 . 2 . . . 1 1 . 17 To Critical Strikes 2 | . . 1 . . . . . . . . . . . . . . . . . . . . . . . . . . . . 1 Average Slot Usage (%) 89 | . 89 80 64 85 86 90 91 92 92 92 88 99 92 90 82 92 96 94 94 94 90 92 95 93 100 100 97 92 92 91 81 Engine 1 | . 8 11 . . . 3 7 6 7 7 1 . . . . . . . . . . . . . . . . . . . . Reactor 3 | . . . 2 14 8 3 . . . . . . . . 3 6 4 5 5 5 5 5 5 4 5 5 5 5 4 3 4 Treads 2 | . . 5 17 . . . . . . . . . . . . . . . . . . . . . . . . . 2 3 4 Leg 9 | . 27 22 8 28 22 22 . . . . . . . . . . . . . . . . . . . . . . 16 21 16 Hover 15 | . . . . . . . . . . . . . . . 26 40 38 38 38 38 35 33 35 33 35 35 35 32 8 . . Flight 4 | . . . . . 1 4 30 30 30 30 30 40 40 40 10 . . . . . . . . . . . . . . . . Device 9 | . 5 . . . 7 5 7 7 7 7 5 5 3 . 9 6 10 11 11 15 16 12 15 14 20 20 16 15 14 15 12 Storage 8 | . 14 14 14 14 9 7 7 7 7 7 6 6 6 6 6 6 8 11 11 11 11 9 10 9 5 5 5 5 4 4 8 Processor 13 | . . . 4 14 17 23 23 23 23 23 20 20 20 20 13 12 11 11 11 11 11 14 15 15 15 15 15 15 13 13 15 Hackware 3 | . . . . . 5 7 7 7 7 7 6 6 6 6 . . 4 5 5 5 5 5 5 5 5 5 5 5 4 4 4 Protection 1 | . . . . . . . . . . . . . . . 1 7 5 5 5 . . 1 . . . . . . 2 1 3 Energy Gun 7 | . 16 25 11 14 1 . . . . . . . 5 . 2 11 8 5 5 5 5 7 5 3 . . . . 15 12 1 Ballistic Gun 1 | . 11 . 2 . 11 7 . 2 7 7 6 6 . . . . . . . . . . . . . . . . . . . Ballistic Cannon 2 | . . . . . . 2 6 4 . . . . . . . . . . . . . 1 . 6 15 15 15 15 3 6 4 Naked Turns . | . . . . . . . . . . . . . . . . . . . . . . . . . . . . . . . . Heaviest Build 124 | 10 49 50 67 62 65 67 22 27 21 21 29 22 22 15 64 68 72 64 64 77 77 82 80 82 72 72 72 71 86 107 124 Greatest Support 156 | 20 20 40 60 50 67 77 24 24 24 24 36 36 36 36 98 98 98 98 98 98 98 94 80 156 80 80 90 80 156 156 124 Greatest Overweight (x) 4 | . 4 2 2 1 1 1 . 1 . . . . . . . . . . . . . 1 . 1 . . . . 1 . . Average Overweight (x) . | . 1 1 1 1 . . . . . . . . . . . . . . . . . . . . . . . . . . . Largest Inventory Capacity 50 | . 20 20 35 35 35 35 35 35 35 35 35 35 40 40 40 35 35 35 35 50 50 50 50 50 50 50 50 50 50 50 50 Average Capacity 38 | . 19 20 21 35 35 35 35 35 35 35 35 35 36 40 35 35 35 35 35 38 50 50 50 50 50 50 50 50 50 49 50 Most Carried 50 | . 9 11 29 29 30 35 34 35 35 35 35 35 37 40 39 35 35 35 35 46 46 50 50 50 46 46 50 50 50 50 50 Average Carried 35 | . 5 10 12 29 26 26 34 34 35 34 33 34 35 39 33 34 32 35 34 36 45 45 50 48 46 46 48 49 48 49 47 Final Capacity 50 | 8 20 20 35 35 35 35 35 35 35 35 35 35 40 40 35 35 35 35 35 50 50 50 50 50 50 50 50 50 50 50 5 Final Carried 50 | 6 9 9 29 29 25 34 34 35 35 35 35 35 37 39 35 34 35 35 34 46 45 50 50 46 46 46 49 50 49 50 . Class Distribution -------------------- 30% | Wizard-Mutant 15% | Hauler-Mutant 14% | Mutant 11% | Wizard-Scout 8% | Wizard-Sprinter 4% | Wizard-Skirmisher 4% | Hauler-Sprinter Dominant Class ---------------- Mutant | -10/Materials Mutant | -10/Mines Mutant | -10/Exiles Hauler-Mutant | -9/Mines Hauler-Mutant | -8/Materials Wizard-Mutant | -7/Factory Wizard-Sprinter | -7/Lower Caves Wizard-Sprinter | -7/Lower Caves Wizard-Sprinter | -7/Data Miner Wizard-Sprinter | -6/Proximity Caves Wizard-Sprinter | -6/Factory Wizard-Sprinter | -6/Lower Caves Hauler-Sprinter | -6/Lower Caves Hauler-Sprinter | -6/Zion Commander-Mutant | -6/Deep Caves Hauler-Mutant | -5/Proximity Caves Wizard-Mutant | -5/Factory Wizard-Mutant | -5/Upper Caves Wizard-Mutant | -5/Upper Caves Wizard-Mutant | -5/Warlord Hauler-Mutant | -4/Proximity Caves Wizard-Scout | -4/Factory Wizard-Scout | -4/Waste Wizard-Scout | -4/Factory Wizard-Scout | -4/Upper Caves Wizard-Scout | -4/Upper Caves Wizard-Scout | -4/Zhirov Wizard-Scout | -3/Proximity Caves Wizard-Mutant | -3/Research Wizard-Mutant | -3/Quarantine Wizard-Mutant | -2/Research Resources | -11 -10 -10 -10 -9 -8 -7 -7 -7 -7 -6 -6 -6 -6 -6 -6 -5 -5 -5 -5 -5 -4 -4 -4 -4 -4 -4 -4 -3 -3 -3 -2 ----------- Run | Jun Mat Min Exi Min Mat Fac Low Low Dat Pro Fac Low Low Zio Dee Pro Fac Upp Upp War Pro Fac Was Fac Upp Upp Zhi Pro Res Qua Res Matter Collected 8934 | 200 109 28 267 20 488 502 140 83 . 17 212 67 46 55 835 77 1334 10 10 59 21 597 . 1018 170 48 48 91 1015 1367 . Remotely . | . . . . . . . . . . . . . . . . . . . . . . . . . . . . . . . . Salvage Created 35301 | . 361 108 598 50 983 1445 613 419 . 178 1047 462 313 . 1149 426 4553 . 300 . 1010 7630 1614 3550 263 174 104 378 5041 2131 401 Parts 437 | . 29 4 . 5 43 46 . . . . 2 4 10 . 7 15 85 . 16 . 28 117 . 17 2 . . 1 6 . . Haulers Intercepted 44 | . 2 . . . 3 5 . . . . 4 . . . . . 9 . . . . 7 . 5 . . . . 7 2 . Recyclers Shooed 2 | . . . . . . . . . . . . . . . . . 1 . . . . 1 . . . . . . . . . Parts Field Recycled . | . . . . . . . . . . . . . . . . . . . . . . . . . . . . . . . . Retrieved Matter . | . . . . . . . . . . . . . . . . . . . . . . . . . . . . . . . . Parts Self-Destructed 54 | . . . . . . . . . . 4 . 3 9 . . 27 . . 3 . 5 . . . 2 . . 1 . . . Prevented 41 | . . . . . . . . . . . . . 4 . . . . . 13 . 23 . . . . 1 . . . . . Kills | -11 -10 -10 -10 -9 -8 -7 -7 -7 -7 -6 -6 -6 -6 -6 -6 -5 -5 -5 -5 -5 -4 -4 -4 -4 -4 -4 -4 -3 -3 -3 -2 ------- Run | Jun Mat Min Exi Min Mat Fac Low Low Dat Pro Fac Low Low Zio Dee Pro Fac Upp Upp War Pro Fac Was Fac Upp Upp Zhi Pro Res Qua Res Combat Hostiles Destroyed 454 | . 8 12 8 3 13 20 16 10 . 3 8 12 7 . 12 6 61 . 4 . 12 84 6 41 9 4 . 11 58 22 4 Melee 5 | . . . . . . 2 . . . . . . . . 2 . 1 . . . . . . . . . . . . . . Guns 106 | . 8 8 . 3 10 7 . . . . . . 4 . 4 6 23 . 2 . 7 21 . 3 . . . . . . . Cannons 5 | . . . . . . . . . . . . . . . . . . . . . . 1 . . 3 . . 1 . . . AOE 21 | . . 4 . . . . . . . . . 2 2 . . . 3 . 1 . . 7 . 1 . . . . 1 . . Classes Destroyed 33 | . 4 2 2 . 3 6 1 1 . . 1 . . . 3 . 3 . . . . 3 1 . 1 . . 1 . 1 . Worker 13 | . . . . . . 4 . . . . . . . . . . . . . . . 6 . . . . . . 2 1 . Builder 10 | . . . . . . 2 . . . . 2 . . . . . . . . . . 3 . 2 . . . . 1 . . Tunneler 1 | . . . . . . . . . . . . . . . . . . . . . . 1 . . . . . . . . . Hauler 44 | . 2 . . . 3 5 . . . . 4 . . . . . 9 . . . . 7 . 5 . . . . 7 2 . Recycler 1 | . . . . . . . . . . . 1 . . . . . . . . . . . . . . . . . . . . Carrier 7 | . . . . . . 1 . . . . . . . . . . 1 . . . . 2 . 1 . . . . 2 . . Mechanic 3 | . . . . . . . . . . . . . . . . . 1 . . . . 2 . . . . . . . . . Operator 7 | . . . . . 1 . . . . . 1 . . . . . 1 . . . . 3 . . . . . . . 1 . Drone 2 | . . . . . . . . . . . . . . . . . . . . . . . . . . . . 2 . . . Turret 1 | . . . 1 . . . . . . . . . . . . . . . . . . . . . . . . . . . . Watcher 47 | . 3 . . . 3 2 . . . . 3 . . . . . 6 . . . . 11 . 9 . . . . 5 3 2 Swarmer 117 | . 5 3 . 3 . 11 11 . . . 3 7 3 . . 1 19 . . . . 9 . 8 8 . . 8 13 5 . Cutter 1 | . . . . . . . . . . . . . . . . . . . . . . 1 . . . . . . . . . Grunt 108 | . 3 . . . 8 2 . 4 . 2 2 3 3 . . 4 10 . 2 . 5 32 . 8 . 1 . . 16 3 . Brawler 10 | . . . . . . . . . . . . . . . . . 2 . 1 . 3 3 . . . . . . 1 . . Duelist 8 | . . . . . . 1 . . . 1 1 . . . . . . . . . 2 1 . 2 . . . . . . . Protector 2 | . . . . . . . . . . . . . . . . . . . . . . 1 . . . . . . . 1 . Researcher 6 | . . . . . . . . . . . . . . . . . . . . . . . . . . . . . . 6 . Sentry 46 | . . . . . 4 1 . . . . 2 1 1 . . . 10 . . . 1 9 . 6 . 1 . 1 8 . 1 Demolisher 2 | . . 1 . . . . . . . . . . . . . . 1 . . . . . . . . . . . . . . Specialist 9 | . . . . . . 1 . . . . . . . . . . . . . . . 2 . . . . . . . 6 . Hunter 45 | . . . . . 1 2 . . . . . . . . . 1 7 . 1 . . 18 . 4 . . . . 8 2 1 Programmer 41 | . . . . . . 2 . . . . . 1 . . . . 9 . . . . 6 . 11 . . . . 8 2 2 Heavy 7 | . . . . . . . . . . . . . . . . . 2 . . . . 2 . 2 . . . . 1 . . Behemoth 11 | . . . . . . . 1 1 . . . . . . . . 1 . . . 1 2 . 2 . . . . 3 . . Compactor 6 | . . . . . . . . . . . . . . . . . . . . . . . 6 . . . . . . . . Lightning 3 | . . . . . . . . . . . . . . . . . . . . . . . . . . . . . . 3 . Zionite 8 | . . . 8 . . . . . . . . . . . . . . . . . . . . . . . . . . . . Z-Light 4 | . . . . . . . . . . . . . . . 3 1 . . . . . . . . . . . . . . . Master Thief 7 | . . . . . . . . 5 . . . . . . . . . . . . . . . . . 2 . . . . . Assembler 2 | . . . . . . . . . . . . . . . 2 . . . . . . . . . . . . . . . . Assembled 19 | . . 8 7 . . . . . . . . . . . 4 . . . . . . . . . . . . . . . . Golem 4 | . . . . . . . . . . . . . . . 4 . . . . . . . . . . . . . . . . Thug 1 | . . . . . . . 1 . . . . . . . . . . . . . . . . . . . . . . . . Butcher 3 | . . . . . . . 3 . . . . . . . . . . . . . . . . . . . . . . . . Mutant 1 | . . . . . . . . . . . . . . . . . . . . . . . . . 1 . . . . . . Best Kill Streak 17 | . 3 7 7 3 4 8 5 5 . 3 7 7 7 . 5 2 7 . 3 . 8 15 17 7 4 2 . 9 16 5 2 Combat Bots Only 13 | . 2 7 7 3 4 4 5 5 . 3 3 7 7 . 4 2 7 . 3 . 8 11 13 6 4 2 . 9 12 5 2 Max Kills in Single Turn 5 | . 1 2 2 1 2 2 1 1 . 1 1 3 2 . 1 2 2 . 1 . 2 5 2 2 2 1 . 1 2 2 1 Gunslinging 1 | . . . . . 1 . . . . . . . . . . . 1 . . . . . . . . . . . . . . Exploded 3 | . . 2 . . . . . . . . . 2 1 . . . 2 . 1 . . 3 . 1 . . . . 1 . . Melee 1 | . . . . . . 1 . . . . . . . . 1 . 1 . . . . . . . . . . . . . . Uniques/NPCs Destroyed 5 | . . . 4 . . . . . . . . . . . 1 . . . . . . . . . . . . . . . . 8R-AWN (-10/Exiles) EX-HEX (-10/Exiles) EX-DEC (-10/Exiles) EX-BIN (-10/Exiles) Z-Imprinter (-6/Deep Caves) Combat | -11 -10 -10 -10 -9 -8 -7 -7 -7 -7 -6 -6 -6 -6 -6 -6 -5 -5 -5 -5 -5 -4 -4 -4 -4 -4 -4 -4 -3 -3 -3 -2 -------- Run | Jun Mat Min Exi Min Mat Fac Low Low Dat Pro Fac Low Low Zio Dee Pro Fac Upp Upp War Pro Fac Was Fac Upp Upp Zhi Pro Res Qua Res Damage Taken 10241 | . 482 399 531 12 332 1034 215 61 . 58 53 164 151 . 373 353 2432 . 107 . 382 1060 . 495 106 10 . 163 887 344 37 Core 1594 | . 52 33 203 . 52 272 69 18 . 28 14 55 14 . 78 41 185 . . . 40 139 . 32 10 5 . 38 164 52 . Absorbed by Shields . | . . . . . . . . . . . . . . . . . . . . . . . . . . . . . . . . Redirected to Shielding 506 | . . . . . . . . . . . . . . . . 12 415 . . . . 61 . . . . . . . . 18 Regen/Repaired (Parts) 2463 | . . . . . 263 . . . . . 90 . . . 60 62 1086 . 54 . 75 395 . 118 7 . . 36 70 147 . Core Remaining (%) 69 | 100 . . . 5 90 . . . . 44 . . . . . 76 . . . . 77 . . . . . . 80 . 83 . Volleys Fired 704 | . 52 32 23 . 30 47 19 15 . 4 20 11 . . 3 16 119 . . . . 64 5 67 11 6 1 14 89 49 7 Largest 5 | . 2 2 1 . 2 2 1 1 . 1 1 2 . . 1 2 2 . . . . 1 1 3 3 1 1 3 1 5 1 Hottest 422 | . 90 90 50 . 60 71 48 48 . 33 43 76 . . 60 120 140 . . . . 100 100 210 202 70 70 202 70 422 70 Shots Fired 1164 | . 102 44 23 5 53 56 19 15 . 4 20 12 18 . 21 32 231 3 12 1 30 146 5 112 15 6 1 18 89 64 7 Gun 791 | . 102 36 23 5 53 33 . 9 . 4 19 11 18 . 21 32 228 3 12 1 30 119 . 29 . . . . . 3 . Cannon 363 | . . . . . . 23 19 6 . . . . . . . . 3 . . . . 27 5 83 15 6 1 18 89 61 7 Launcher 10 | . . 8 . . . . . . . . 1 1 . . . . . . . . . . . . . . . . . . . Special . | . . . . . . . . . . . . . . . . . . . . . . . . . . . . . . . . Kinetic 513 | . 49 . 13 . 43 56 19 15 . 4 19 11 . . . . 3 . . . . 5 . 80 15 6 1 18 89 61 6 Thermal 246 | . 53 36 10 . . . . . . . . . . . 3 32 109 . . . . . . . . . . . . 3 . Explosive 10 | . . 8 . . . . . . . . 1 1 . . . . . . . . . . . . . . . . . . . Electromagnetic 242 | . . . . 5 10 . . . . . . . 18 . 18 . 36 3 12 1 30 82 . 26 . . . . . . 1 Entropic 70 | . . . . . . . . . . . . . . . . . . . . . . 59 5 6 . . . . . . . Phasic 83 | . . . . . . . . . . . . . . . . . 83 . . . . . . . . . . . . . . Robot Hit Streak 60 | . 19 11 16 6 18 10 8 14 . 4 9 8 23 . 16 33 32 16 20 6 35 60 14 34 13 4 5 8 17 27 11 Robot Miss Streak 4 | . 4 2 2 1 1 1 2 1 . 1 1 1 1 . 2 1 2 . 2 . 1 2 . 2 1 1 . 2 2 2 . Penetration Max 2 | . . . 1 . 1 2 . . . . . . . . . . . . . . . 1 1 . . . . . . . . Secondary Targets 12 | . . 3 . . 1 . . . . . . . . . . 2 6 . . . . . . . . . . . . . . Max Gunslinging Chain 1 | . . 1 . . 1 . . . . . . . . . . 1 1 . . . . . . . . . . . . . . Autonomous 241 | . . . . 5 10 . . . . . . . 18 . 18 . 36 3 12 1 30 82 . 26 . . . . . . . Shots Hit Robots 984 | . 70 29 18 5 40 45 14 12 . 3 18 10 18 2 66 30 194 3 11 1 30 136 5 84 8 4 1 12 71 37 7 Core Hits 525 | . 21 28 . 3 24 35 . . . . 1 2 16 . 23 14 83 1 10 1 39 178 . 38 3 . . . 5 . . Critical Kills 11 | . . . . . 5 6 . . . . . . . . . . . . . . . . . . . . . . . . . Critical Parts Destroyed 12 | . . . . . 3 9 . . . . . . . . . . . . . . . . . . . . . . . . . Critical Strikes 77 | . 3 . . . 8 15 . . . . . . 2 . 2 . 15 . . . 4 20 . 8 . . . . . . . Burn 3 | . 3 . . . . . . . . . . . . . . . . . . . . . . . . . . . . . . Destroy 23 | . . . . . 8 15 . . . . . . . . . . . . . . . . . . . . . . . . . Blast 3 | . . . . . . . . . . . . . . . . . . . . . . . . 3 . . . . . . . Corrupt 36 | . . . . . . . . . . . . . 2 . 2 . 3 . . . 4 20 . 5 . . . . . . . Impale 1 | . . . . . . . . . . . . . . . . . 1 . . . . . . . . . . . . . . Intensify 11 | . . . . . . . . . . . . . . . . . 11 . . . . . . . . . . . . . . Melee Attacks 57 | . . . . . . . . . . . . . 1 3 46 2 2 . . . . 2 . 1 . . . . . . . Impact . | . . . . . . . . . . . . . . . . . . . . . . . . . . . . . . . . Slashing 47 | . . . . . . . . . . . . . 1 1 45 . . . . . . . . . . . . . . . . Piercing 4 | . . . . . . . . . . . . . . . . 2 2 . . . . . . . . . . . . . . Sneak Attacks 13 | . . . . . . . . . . . . . . 2 7 . 1 . . . . 2 . 1 . . . . . . . Combat Hostiles 8 | . . . . . . . . . . . . . . . 5 . 1 . . . . 1 . 1 . . . . . . . Follow-up Attacks . | . . . . . . . . . . . . . . . . . . . . . . . . . . . . . . . . Damage Inflicted 23509 | . 712 524 . 113 918 829 . 44 . . 75 251 921 . 694 880 4128 92 418 27 1876 8993 . 1295 126 . . 45 448 58 42 Guns 17759 | . 712 309 . 113 915 619 . 44 . . . . 538 . 538 793 3782 92 358 27 1550 6459 . 852 . . . . . 58 . Cannons 807 | . . . . . . . . . . . . . . . . . . . . . . 190 . 404 126 . . 45 . . 42 Explosions 4404 | . . 213 . . . . . . . . 75 251 383 . . . 265 . 60 . 326 2344 . 39 . . . . 448 . . Melee 324 | . . . . . . . . . . . . . . . 156 87 81 . . . . . . . . . . . . . . Ramming 215 | . . 2 . . 3 210 . . . . . . . . . . . . . . . . . . . . . . . . . Kinetic 2296 | . 312 . . . 556 619 . 44 . . . . . . . . . . . . . 190 . 404 126 . . 45 . . . Thermal 7284 | . 400 309 . . . . . . . . . . 383 . 86 793 2892 . 60 . 326 1938 . 39 . . . . . 58 . Explosive 1393 | . . 213 . . . . . . . . 75 251 . . . . . . . . . 406 . . . . . . 448 . . Electromagnetic 11403 | . . . . 113 359 . . . . . . . 538 . 452 . 561 92 358 27 1550 6459 . 852 . . . . . . 42 Impact . | . . . . . . . . . . . . . . . . . . . . . . . . . . . . . . . . Slashing 156 | . . . . . . . . . . . . . . . 156 . . . . . . . . . . . . . . . . Piercing 168 | . . . . . . . . . . . . . . . . 87 81 . . . . . . . . . . . . . . Phasic 594 | . . . . . . . . . . . . . . . . . 594 . . . . . . . . . . . . . . Highest Corruption 13 | . 1 1 1 1 13 . . . . . . . . . 1 1 3 . . . . 2 9 9 . . . . 1 1 . Average Corruption 1 | . 1 1 1 1 3 . . . . . . . . . 1 1 1 . . . . 1 7 2 . . . . 1 1 . Corruption Purged 16 | . . . . . . . . . . . . . . . . . 3 . . . . . . 12 . . . . 1 . . Corruption Blocked 15 | . . . . . . . . . . . . . . . . . . . . . . . . . . . . . . 15 . Effects 120 | . 9 5 11 6 16 . . . . . . . . . 2 10 16 . . . . 12 4 15 . . . . 3 11 . Message Errors 26 | . 3 2 3 1 3 . . . . . . . . . 1 2 3 . . . . 2 1 3 . . . . . 2 . Matter Fused 35 | . 2 1 2 2 6 . . . . . . . . . . 3 6 . . . . 5 . 5 . . . . . 3 . Heat Flow Errors 19 | . 2 1 . 1 3 . . . . . . . . . . 3 4 . . . . 1 2 . . . . . 2 . . Energy Discharges 18 | . 1 . 4 1 1 . . . . . . . . . 1 1 . . . . . 1 . 4 . . . . 1 3 . Parts Fused 1 | . 1 . . . . . . . . . . . . . . . . . . . . . . . . . . . . . . Data Loss (minor) 13 | . . . 1 1 2 . . . . . . . . . . 1 . . . . . 3 1 2 . . . . . 2 . Data Loss (major) 5 | . . 1 1 . 1 . . . . . . . . . . . 1 . . . . . . . . . . . . 1 . Misfires 3 | . . . . . . . . . . . . . . . . . 2 . . . . . . 1 . . . . . . . Overload Shots . | . . . . . . . . . . . . . . . . . . . . . . . . . . . . . . . . Overflow Damage 426 | . . 3 . . . 3 . . . . 26 . 28 . 8 . . . 15 . . 210 . 10 . . . 15 108 . . Projectiles 25 | . . . . . . . . . . . . . . . . . . . . . . . . 10 . . . 15 . . . Explosions 390 | . . 3 . . . . . . . . 26 . 28 . . . . . 15 . . 210 . . . . . . 108 . . Melee 11 | . . . . . . 3 . . . . . . . . 8 . . . . . . . . . . . . . . . . Knockbacks 3 | . . . . . . . . . . . . . . . . . . . . . . 2 . 1 . . . . . . . Impact . | . . . . . . . . . . . . . . . . . . . . . . . . . . . . . . . . Kinetic 3 | . . . . . . . . . . . . . . . . . . . . . . 2 . 1 . . . . . . . Secondary . | . . . . . . . . . . . . . . . . . . . . . . . . . . . . . . . . Self-Inflicted Damage 544 | . . 60 . . . . . . . . . . 37 . . . 21 . 40 . 48 227 . 15 . . . . 96 . . Shots 12 | . . 2 . . . . . . . . . . 1 . . . 1 . 1 . 1 4 . 1 . . . . 1 . . Rammed 2 | . . 2 . . . . . . . . . . . . . . . . . . . . . . . . . . . . . Targets Rammed 48 | . . 2 . . 1 45 . . . . . . . . . . . . . . . . . . . . . . . . . Kicked 46 | . . . . . 1 45 . . . . . . . . . . . . . . . . . . . . . . . . . Crushed . | . . . . . . . . . . . . . . . . . . . . . . . . . . . . . . . . Highest Temperature 645 | . 222 200 80 247 162 28 18 9 . 28 45 24 30 34 78 319 645 . . . . 331 377 318 30 . . 36 213 108 . Average Temperature 77 | . 60 55 20 124 68 8 7 3 . 11 12 10 9 10 10 126 169 . . . . 85 172 76 18 . . 24 84 66 . Received Heat Transfer 1684 | . 171 20 80 . 180 90 9 . . 54 6 54 18 . 78 105 480 . . . 42 123 . 21 . . . . 111 42 . Effects 20 | . . . . . . . . . . . . . . . . 3 17 . . . . . . . . . . . . . . Energy Bleed 4 | . . . . . . . . . . . . . . . . . 4 . . . . . . . . . . . . . . Interference 10 | . . . . . . . . . . . . . . . . 3 7 . . . . . . . . . . . . . . Matter Decay 1 | . . . . . . . . . . . . . . . . . 1 . . . . . . . . . . . . . . Damage (minor) 1 | . . . . . . . . . . . . . . . . . 1 . . . . . . . . . . . . . . Damage (major) 4 | . . . . . . . . . . . . . . . . . 4 . . . . . . . . . . . . . . Siege Activations . | . . . . . . . . . . . . . . . . . . . . . . . . . . . . . . . . Robots Corrupted 29 | . . . . . . . . . . . . . 1 . . . 2 . 1 . 5 16 . 4 . . . . . . . Combat Hostiles 24 | . . . . . . . . . . . . . 1 . . . 2 . 1 . 5 13 . 2 . . . . . . . Parts Fried 102 | . . . . . 6 . . . . . . . 1 . . . 9 . 5 . 8 60 . 13 . . . . . . . Impact Corruptions 1 | . . . . . . 1 . . . . . . . . . . . . . . . . . . . . . . . . . Robots Melted 3 | . . . . . . . . . . . . . . . . . 3 . . . . . . . . . . . . . . Combat Hostiles 3 | . . . . . . . . . . . . . . . . . 3 . . . . . . . . . . . . . . Parts Melted 13 | . 1 . . . . . . . . . . . . . . . 12 . . . . . . . . . . . . . . Heat Transferred 9069 | . 1300 854 . . . . . . . . . . 250 . 111 1036 3794 . 50 . 250 1350 . . . . . . . 74 . Parts Sabotaged . | . . . . . . . . . . . . . . . . . . . . . . . . . . . . . . . . Parts Stolen . | . . . . . . . . . . . . . . . . . . . . . . . . . . . . . . . . Parts Stripped 61 | . . . . . . . . . . . . . . . . . . . . . . . . . . . . . . . 61 Power Chain Reactions 13 | . . . . . . . . . . . . . 2 . . . 1 . 1 . 1 7 . 1 . . . . . . . Missiles Intercepted . | . . . . . . . . . . . . . . . . . . . . . . . . . . . . . . . . Alert | -11 -10 -10 -10 -9 -8 -7 -7 -7 -7 -6 -6 -6 -6 -6 -6 -5 -5 -5 -5 -5 -4 -4 -4 -4 -4 -4 -4 -3 -3 -3 -2 ------- Run | Jun Mat Min Exi Min Mat Fac Low Low Dat Pro Fac Low Low Zio Dee Pro Fac Upp Upp War Pro Fac Was Fac Upp Upp Zhi Pro Res Qua Res Peak Influence 1659 | . 155 70 . 70 288 420 . . . . 377 . . . . . 1087 . . . . 1659 479 1029 . . . . 1343 801 149 Initial 594 | . . . . . 22 75 . . . . . . . . . . 17 . . . . 31 473 295 . . . . 269 594 . Average 415 | . 53 27 . . 131 116 . . . . 212 . . . . . 559 . . . . 829 477 532 . . . . 944 184 50 Maximum Alert Level 5 | . . . . . 1 2 . . . . 1 . . . . . 3 . . . . 5 2 3 . . . . 4 3 . Low Security (%) 48 | . 100 100 . 100 93 90 . . . . 61 . . . . . 21 . . . . 12 . 4 . . . . . 70 100 Level 1 11 | . . . . . 6 8 . . . . 38 . . . . . 20 . . . . 18 . 14 . . . . 8 7 . Level 2 12 | . . . . . . 1 . . . . . . . . . . 17 . . . . 15 100 58 . . . . 4 15 . Level 3 18 | . . . . . . . . . . . . . . . . . 41 . . . . 14 . 22 . . . . 53 7 . Level 4 8 | . . . . . . . . . . . . . . . . . . . . . . 36 . . . . . . 32 . . Level 5 . | . . . . . . . . . . . . . . . . . . . . . . 3 . . . . . . . . . High Security . | . . . . . . . . . . . . . . . . . . . . . . . . . . . . . . . . Max Security . | . . . . . . . . . . . . . . . . . . . . . . . . . . . . . . . . Squads Dispatched 52 | . . . . . 1 3 . . . . 2 . . . . . 11 . . . . 12 . 7 . . . . 11 4 1 Investigation 6 | . . . . . . 1 . . . . 1 . . . . . 1 . . . . 1 . 1 . . . . 1 . . Extermination 22 | . . . . . . 2 . . . . 1 . . . . . 3 . . . . 3 . 5 . . . . 4 4 . Reinforcement 10 | . . . . . 1 . . . . . . . . . . . 3 . . . . 4 . 1 . . . . . . 1 Assault 12 | . . . . . . . . . . . . . . . . . 3 . . . . 3 . . . . . . 6 . . Garrison 2 | . . . . . . . . . . . . . . . . . 1 . . . . 1 . . . . . . . . . Intercept . | . . . . . . . . . . . . . . . . . . . . . . . . . . . . . . . . Searches Triggered . | . . . . . . . . . . . . . . . . . . . . . . . . . . . . . . . . Data Miner Redirects 3 | . . . . . . . . . . . . . . . . . 1 . . . . . . . . . . . 2 . . Construction Impeded . | . . . . . . . . . . . . . . . . . . . . . . . . . . . . . . . . Haulers Reinforced 3 | . . . . . . . . . . . . . . . . . . . . . . 2 . . . . . . . . 1 Active Scanning Responses . | . . . . . . . . . . . . . . . . . . . . . . . . . . . . . . . . Cargo Convoy Interrupts 3 | . . . . . . 1 . . . . . . . . . . 1 . . . . 1 . . . . . . . . . Stealth | -11 -10 -10 -10 -9 -8 -7 -7 -7 -7 -6 -6 -6 -6 -6 -6 -5 -5 -5 -5 -5 -4 -4 -4 -4 -4 -4 -4 -3 -3 -3 -2 --------- Run | Jun Mat Min Exi Min Mat Fac Low Low Dat Pro Fac Low Low Zio Dee Pro Fac Upp Upp War Pro Fac Was Fac Upp Upp Zhi Pro Res Qua Res Distress Signals 8 | . . 2 . . 1 . . . . . . . . . . . 1 . . . . 2 . 1 . . . . . . 1 Communications Jammed 18 | . . . . . . . . . . . . . . . . . . . . . . 9 . 9 . . . . . . . Distress Signals 17 | . . . . . . . . . . . . . . . . . . . . . . 9 . 8 . . . . . . . Times Spotted 505 | . 14 15 21 4 20 29 15 6 . 4 10 8 9 . 31 15 78 1 3 5 13 72 . 36 7 4 . 9 48 23 5 Peak Tracking Total 21 | . 3 7 9 4 6 5 4 5 . 4 3 6 4 . 21 4 8 1 2 5 8 6 . 4 4 2 . 5 5 4 2 Tactical Retreats 16 | . 1 1 3 . . 1 . . . . 1 . . . 1 . 5 . . . 1 . . . . . . . 2 . . Traps | -11 -10 -10 -10 -9 -8 -7 -7 -7 -7 -6 -6 -6 -6 -6 -6 -5 -5 -5 -5 -5 -4 -4 -4 -4 -4 -4 -4 -3 -3 -3 -2 ------- Run | Jun Mat Min Exi Min Mat Fac Low Low Dat Pro Fac Low Low Zio Dee Pro Fac Upp Upp War Pro Fac Was Fac Upp Upp Zhi Pro Res Qua Res Traps Triggered 14 | . 2 . . . 3 . . . . . 1 . . . . . 1 . . . . 3 . 4 . . . . . . . Indirectly 1 | . . . . . . . . . . . . . . . . . 1 . . . . . . . . . . . . . . Trap Hack Attempts . | . . . . . . . . . . . . . . . . . . . . . . . . . . . . . . . . Triggered . | . . . . . . . . . . . . . . . . . . . . . . . . . . . . . . . . Disarmed 6 | . . . . . . . . . . . . . . . . . . . . . . . . . . . . . . 6 . Reprogrammed 14 | . . . . . . . . . . . 4 . . . . . . . . . . . . . . . . . . 10 . Reused 50 | . . . . . 4 4 . . . . . . . . . . 20 . . . . 8 . 6 . . . . 8 . . Traps Reconfigurated 224 | . . . . . 7 14 . . . . . . . . . . 80 . . . . 54 . 48 . . . . 21 . . Traps Extracted . | . . . . . . . . . . . . . . . . . . . . . . . . . . . . . . . . Installed . | . . . . . . . . . . . . . . . . . . . . . . . . . . . . . . . . Triggered 61 | . . . . . 5 4 . . . . . . . . . . 20 . . 6 1 8 . 6 . 3 . . 8 . . Exploded 2 | . . . . . 2 . . . . . . . . . . . . . . . . . . . . . . . . . . Machines | -11 -10 -10 -10 -9 -8 -7 -7 -7 -7 -6 -6 -6 -6 -6 -6 -5 -5 -5 -5 -5 -4 -4 -4 -4 -4 -4 -4 -3 -3 -3 -2 ---------- Run | Jun Mat Min Exi Min Mat Fac Low Low Dat Pro Fac Low Low Zio Dee Pro Fac Upp Upp War Pro Fac Was Fac Upp Upp Zhi Pro Res Qua Res Machines Disabled 47 | . . . 7 . 1 . . . . . . . 1 . 3 . 6 . . . 1 14 . 2 1 . . . 4 7 . Max in Single Turn 6 | . . . 2 . 1 . . . . . . . 1 . . . 2 . . . 1 6 . 1 1 . . . 1 1 . Garrison Access 5 | . . . . . . . . . . . 1 . . . . . 3 . . . . 1 . . . . . . . . . Machines Repaired . | . . . . . . . . . . . . . . . . . . . . . . . . . . . . . . . . Machines Sabotaged 5 | . . . . . . . . . . . . . . . . . 2 . . . . 2 . . . . . . . 1 . Overloaded Fab Kills . | . . . . . . . . . . . . . . . . . . . . . . . . . . . . . . . . Hacking | -11 -10 -10 -10 -9 -8 -7 -7 -7 -7 -6 -6 -6 -6 -6 -6 -5 -5 -5 -5 -5 -4 -4 -4 -4 -4 -4 -4 -3 -3 -3 -2 --------- Run | Jun Mat Min Exi Min Mat Fac Low Low Dat Pro Fac Low Low Zio Dee Pro Fac Upp Upp War Pro Fac Was Fac Upp Upp Zhi Pro Res Qua Res Machines Accessed 138 | . 4 1 1 . 5 6 . . 1 . 7 . . . . . 23 3 . 10 . 24 . 19 1 . 7 1 11 14 . Terminals 82 | . 4 . . . 3 4 . . . . 5 . . . . . 14 1 . . . 16 . 15 . . . 1 7 12 . Fabricators 4 | . . . . . . . . . . . . . . . . . 1 . . . . 1 . 2 . . . . . . . Repair Stations 9 | . . . . . 1 . . . . . 1 . . . . . 2 . . . . 2 . 1 . . . . 1 1 . Recycling Units . | . . . . . . . . . . . . . . . . . . . . . . . . . . . . . . . . Scanalyzers 11 | . . . . . 1 1 . . . . . . . . . . 3 . . . . 2 . 1 . . . . 2 1 . Garrison Access 9 | . . . . . . 1 . . . . 1 . . . . . 3 . . . . 3 . . . . . . 1 . . Total Hacks 773 | . 6 1 1 . 66 31 . . 6 . 34 . . . . . 168 9 . 17 . 163 . 82 1 . 18 8 75 87 . Successful 687 | . 5 1 1 . 47 24 . . 6 . 34 . . . . . 135 9 . 17 . 137 . 82 1 . 18 8 75 87 . Failed 86 | . 1 . . . 19 7 . . . . . . . . . . 33 . . . . 26 . . . . . . . . . Catastrophic 13 | . . . . . 6 1 . . . . . . . . . . 5 . . . . 1 . . . . . . . . . Database Lockouts . | . . . . . . . . . . . . . . . . . . . . . . . . . . . . . . . . Manual 183 | . . . 1 . 8 10 . . . . 5 . 1 4 . . 35 . . 2 . 63 . 17 . . . . 20 17 . Terminals 487 | . 6 . . . 16 27 . . . . 17 . . . . . 107 1 . . . 105 . 71 . . . 8 48 81 . Fabricators 21 | . . . . . . . . . . . . . . . . . 5 . . . . 9 . 7 . . . . . . . Repair Stations 38 | . . . . . 6 . . . . . 14 . . . . . 6 . . . . 4 . 2 . . . . 4 2 . Recycling Units . | . . . . . . . . . . . . . . . . . . . . . . . . . . . . . . . . Scanalyzers 141 | . . . . . 44 1 . . . . . . . . . . 42 . . . . 29 . 2 . . . . 19 4 . Garrison Access 34 | . . . . . . 3 . . . . 3 . . . . . 8 . . . . 16 . . . . . . 4 . . Terminal Hacks 436 | . 5 1 1 . 6 19 . . 6 . 17 . . . . . 72 9 . 17 . 69 . 64 1 . 18 8 46 77 . Record 58 | . . . . . . . . . 6 . 1 . . . . . 1 8 . 15 . 1 . 1 . . 8 8 2 7 . Part Schematic 68 | . . . . . . 3 . . . . 4 . . . . . 17 . . . . 15 . 12 . . 3 . 1 13 . Robot Schematic 7 | . . . . . . . . . . . . . . . . . . . . . . 4 . 1 . . . . . 2 . Robot Analysis 18 | . . . . . . 1 . . . . . . . . . . 3 . . . . 6 . 1 . . 3 . 3 1 . Prototype ID Bank 29 | . . . . . . . . . . . 2 . . . . . 8 . . . . 3 . 2 . . 4 . 4 6 . Open Door 5 | . . 1 . . . . . . . . . . . . . . . 1 . 2 . . . . 1 . . . . . . Open DSF 1 | . . . . . . . . . . . . . . . . . . . . . . . . 1 . . . . . . . Level Access Points 6 | . . . . . 1 1 . . . . 1 . . . . . 1 . . . . 1 . . . . . . . 1 . Branch Access Points 13 | . 1 . . . 1 2 . . . . 1 . . . . . 1 . . . . 1 . 1 . . . . 3 2 . Emergency Access Points 13 | . . . . . . . . . . . . . . . . . 2 . . . . 2 . 3 . . . . 4 2 . Machine Index 13 | . . . . . . 1 . . . . 1 . . . . . 1 . . . . 2 . 2 . . . . 2 4 . Terminal Index 3 | . . . . . . 1 . . . . . . . . . . 1 . . . . 1 . . . . . . . . . Repair Station Index 1 | . . . . . . . . . . . 1 . . . . . . . . . . . . . . . . . . . . Scanalyzer Index 4 | . . . . . . . . . . . 1 . . . . . 1 . . . . 1 . . . . . . 1 . . Alert Level 20 | . . . . . 1 . . . . . 1 . . . . . 2 . . . . 1 . 6 . . . . . 9 . Unreport Threat 29 | . . . . . . . . . . . . . . . . . 8 . . . . 6 . 7 . . . . . 8 . Locate Traps 36 | . 1 . . . 1 1 . . . . 1 . . . . . 8 . . . . 6 . 9 . . . . 4 5 . Disarm Traps 1 | . . . . . . . . . . . . . . . . . . . . . . . . . . . . . . 1 . Reprogram Traps 3 | . . . . . . . . . . . 1 . . . . . . . . . . . . . . . . . . 2 . Dispatch Records 15 | . . . . . . . . . . . . . . . . . 1 . . . . 3 . 2 . . . . 6 3 . Maintenance Status 1 | . . . . . . . . . . . . . . . . . 1 . . . . . . . . . . . . . . Security Status 1 | . . . . . . . . . . . . . . . . . . . . . . 1 . . . . . . . . . Surveillance Status 1 | . . . . . . . . . . . . . . . . . . . . . . . . . . . . . . 1 . Patrol Status 1 | . . . . . . . . . . . . . . . . . . . . . . . . . . . . . 1 . . Recall Investigation 3 | . . . . . . . . . . . . . . . . . 2 . . . . 1 . . . . . . . . . Recall Extermination 7 | . . . . . . . . . . . 1 . . . . . . . . . . 1 . 1 . . . . 2 2 . Recall Reinforcements 6 | . . . . . . 1 . . . . . . . . . . 3 . . . . 1 . 1 . . . . . . . Recall Assault 5 | . . . . . . . . . . . . . . . . . 1 . . . . 1 . . . . . . 3 . . Hauler Manifests 20 | . 1 . . . . 2 . . . . 1 . . . . . 3 . . . . 5 . 3 . . . . 2 3 . Registered Components 9 | . 1 . . . . 1 . . . . . . . . . . 1 . . . . 1 . 2 . . . . 2 1 . Registered Prototypes 9 | . . . . . 1 1 . . . . . . . . . . 1 . . . . 1 . 2 . . . . 2 1 . Zone Layout 29 | . 1 . . . 1 4 . . . . . . . . . . 5 . . . . 4 . 7 . . . . 4 3 . EX-Prototype ID Bank 1 | . . . 1 . . . . . . . . . . . . . . . . . . . . . . . . . . . . Fabricator Hacks 12 | . . . . . . . . . . . . . . . . . 2 . . . . 6 . 4 . . . . . . . Network Status 5 | . . . . . . . . . . . . . . . . . . . . . . 3 . 2 . . . . . . . Load Schematic 3 | . . . . . . . . . . . . . . . . . 1 . . . . 1 . 1 . . . . . . . Build 4 | . . . . . . . . . . . . . . . . . 1 . . . . 2 . 1 . . . . . . . Repair Station Hacks 36 | . . . . . 4 . . . . . 14 . . . . . 6 . . . . 4 . 2 . . . . 4 2 . Scan Component 18 | . . . . . 2 . . . . . 7 . . . . . 3 . . . . 2 . 1 . . . . 2 1 . Repair 18 | . . . . . 2 . . . . . 7 . . . . . 3 . . . . 2 . 1 . . . . 2 1 . Recycling Unit Hacks . | . . . . . . . . . . . . . . . . . . . . . . . . . . . . . . . . Scanalyzer 125 | . . . . . 36 . . . . . . . . . . . 35 . . . . 29 . 2 . . . . 19 4 . Insert Component 61 | . . . . . 16 . . . . . . . . . . . 15 . . . . 15 . 1 . . . . 10 4 . Analyze 64 | . . . . . 20 . . . . . . . . . . . 20 . . . . 14 . 1 . . . . 9 . . Garrison Access Hacks 5 | . . . . . . . . . . . 1 . . . . . 3 . . . . 1 . . . . . . . . . Seal Access 5 | . . . . . . . . . . . 1 . . . . . 3 . . . . 1 . . . . . . . . . Unauthorized Hacks 73 | . . . . . 1 5 . . . . 2 . . . . . 17 . . . . 28 . 10 . . . . 6 4 . Terminals 39 | . . . . . 1 1 . . . . . . . . . . 9 . . . . 15 . 7 . . . . 2 4 . Track 6 | . . . . . . . . . . . . . . . . . . . . . . 3 . 2 . . . . . 1 . Assimilate 13 | . . . . . 1 . . . . . . . . . . . 3 . . . . 5 . 2 . . . . 1 1 . Botnet 8 | . . . . . . 1 . . . . . . . . . . 3 . . . . 4 . . . . . . . . . Disrupt 4 | . . . . . . . . . . . . . . . . . . . . . . 2 . . . . . . 1 1 . Operators 8 | . . . . . . . . . . . . . . . . . 3 . . . . 1 . 3 . . . . . 1 . Fabricators 9 | . . . . . . . . . . . . . . . . . 3 . . . . 3 . 3 . . . . . . . Report 3 | . . . . . . . . . . . . . . . . . 1 . . . . 1 . 1 . . . . . . . Prioritize 3 | . . . . . . . . . . . . . . . . . 1 . . . . 1 . 1 . . . . . . . Haulers 3 | . . . . . . . . . . . . . . . . . 1 . . . . 1 . 1 . . . . . . . Repair Stations . | . . . . . . . . . . . . . . . . . . . . . . . . . . . . . . . . Recycling Units . | . . . . . . . . . . . . . . . . . . . . . . . . . . . . . . . . Scanalyzers 1 | . . . . . . 1 . . . . . . . . . . . . . . . . . . . . . . . . . Extract 1 | . . . . . . 1 . . . . . . . . . . . . . . . . . . . . . . . . . Garrison Access 24 | . . . . . . 3 . . . . 2 . . . . . 5 . . . . 10 . . . . . . 4 . . Broadcast 8 | . . . . . . 1 . . . . 1 . . . . . 2 . . . . 3 . . . . . . 1 . . Decoy 1 | . . . . . . . . . . . . . . . . . . . . . . 1 . . . . . . . . . Redirect 1 | . . . . . . . . . . . . . . . . . . . . . . . . . . . . . 1 . . Reprogram 2 | . . . . . . . . . . . . . . . . . . . . . . 2 . . . . . . . . . Intercept 5 | . . . . . . 1 . . . . . . . . . . 1 . . . . 2 . . . . . . 1 . . Watchers 7 | . . . . . . 1 . . . . 1 . . . . . 2 . . . . 2 . . . . . . 1 . . Data Cores Recovered 5 | . . . . . . . . . . . 1 . . . . . 1 . . . . 2 . . . . . . . 1 . Used 3 | . . . . . . . . . . . 1 . . . . . 1 . . . . . . . . . . . . 1 . Hacking Detections 18 | . 2 . . . 4 . . . . . . . . . . . 7 . . . . 4 . 1 . . . . . . . Full Trace Events 3 | . . . . . . . . . . . . . . . . . 1 . . . . 1 . 1 . . . . . . . Feedback Events . | . . . . . . . . . . . . . . . . . . . . . . . . . . . . . . . . Feedback Blocked . | . . . . . . . . . . . . . . . . . . . . . . . . . . . . . . . . Robot Schematics Acquired 12 | . . . . . . . . . . . . . . 2 . . . . . . . 4 . 1 . . . . . 5 . Robots Built 1 | . . . . . . . . . . . . . . . . . . . . . . 1 . . . . . . . . . Authchips . | . . . . . . . . . . . . . . . . . . . . . . . . . . . . . . . . Time 46 | . . . . . . . . . . . . . . . . . . . . . . 46 . . . . . . . . . Total Robot Build Rating 7 | . . . . . . . . . . . . . . . . . . . . . . 7 . . . . . . . . . Part Schematics Acquired 140 | . . . . . 16 4 . . . . 4 . . 15 . . 30 . . . . 27 . 13 . . 3 . 9 19 . Parts Built 4 | . . . . . . . . . . . . . . . . . 1 . . . . 2 . 1 . . . . . . . Authchips . | . . . . . . . . . . . . . . . . . . . . . . . . . . . . . . . . Time 187 | . . . . . . . . . . . . . . . . . 102 . . . . 34 . 51 . . . . . . . Total Part Build Rating 34 | . . . . . . . . . . . . . . . . . 8 . . . . 18 . 8 . . . . . . . Parts Repaired 18 | . . . . . 2 . . . . . 7 . . . . . 3 . . . . 2 . 1 . . . . 2 1 . Time 1354 | . . . . . 105 . . . . . 522 . . . . . 260 . . . . 113 . 108 . . . . 192 54 . Parts Recycled . | . . . . . . . . . . . . . . . . . . . . . . . . . . . . . . . . Recycled Matter . | . . . . . . . . . . . . . . . . . . . . . . . . . . . . . . . . Retrieved Matter . | . . . . . . . . . . . . . . . . . . . . . . . . . . . . . . . . Retrieved Components . | . . . . . . . . . . . . . . . . . . . . . . . . . . . . . . . . Parts Scanalyzed 50 | . . . . . 16 . . . . . . . . . . . 13 . . . . 12 . 1 . . . . 8 . . Part Schematics Acquired 50 | . . . . . 16 . . . . . . . . . . . 13 . . . . 12 . 1 . . . . 8 . . Parts Damaged 8 | . . . . . 3 . . . . . . . . . . . 1 . . . . 2 . . . . . . 2 . . Bothacking | -11 -10 -10 -10 -9 -8 -7 -7 -7 -7 -6 -6 -6 -6 -6 -6 -5 -5 -5 -5 -5 -4 -4 -4 -4 -4 -4 -4 -3 -3 -3 -2 ------------ Run | Jun Mat Min Exi Min Mat Fac Low Low Dat Pro Fac Low Low Zio Dee Pro Fac Upp Upp War Pro Fac Was Fac Upp Upp Zhi Pro Res Qua Res Used RIF Installer . | . . . . . . . . . . . . . . . . . . . . . . . . . . . . . . . . Robots Hacked 6 | . . . . . . . . . . . . . . 2 3 . . . . . . 1 . . . . . . . . . Non-combat 1 | . . . . . . . . . . . . . . . . . . . . . . 1 . . . . . . . . . Combat 5 | . . . . . . . . . . . . . . 2 3 . . . . . . . . . . . . . . . . Robot Hacks Applied 6 | . . . . . . . . . . . . . . 2 3 . . . . . . 1 . . . . . . . . . parse_system 5 | . . . . . . . . . . . . . . 2 3 . . . . . . . . . . . . . . . . no_distress 1 | . . . . . . . . . . . . . . . . . . . . . . 1 . . . . . . . . . Relay Couplers Released . | . . . . . . . . . . . . . . . . . . . . . . . . . . . . . . . . Fabnet Peak Effective % . | . . . . . . . . . . . . . . . . . . . . . . . . . . . . . . . . Robots Rewired 23 | . . . . . . . . . . . . 2 5 . 4 . . 1 . . 5 5 . 1 . . . . . . . Allies Hacked . | . . . . . . . . . . . . . . . . . . . . . . . . . . . . . . . . Hacks Repelled . | . . . . . . . . . . . . . . . . . . . . . . . . . . . . . . . . Allies | -11 -10 -10 -10 -9 -8 -7 -7 -7 -7 -6 -6 -6 -6 -6 -6 -5 -5 -5 -5 -5 -4 -4 -4 -4 -4 -4 -4 -3 -3 -3 -2 -------- Run | Jun Mat Min Exi Min Mat Fac Low Low Dat Pro Fac Low Low Zio Dee Pro Fac Upp Upp War Pro Fac Was Fac Upp Upp Zhi Pro Res Qua Res Total Allies 32 | . . . . . 1 . . . . 1 . 2 5 . 5 . 1 1 . . 5 6 3 2 . . . . . . . Largest Group 11 | . . . . . 1 1 . . . 1 1 2 7 7 11 11 6 1 1 . 5 6 4 4 1 1 1 1 1 . . Highest-Rated Group 581 | . . . . . 10 10 . . . 96 96 49 220 220 581 573 225 49 49 . 236 262 178 180 22 22 22 22 22 . . Highest-Rated Ally 119 | . . . . . 10 10 . . . 96 96 29 41 41 119 111 64 49 49 . 64 64 48 49 22 22 22 22 22 . . Total Orders 17 | . . . . . . . . . . . . . . . 6 . . . . 2 4 1 . 1 . . . . . 2 1 STAY 3 | . . . . . . . . . . . . . . . 3 . . . . . . . . . . . . . . . . FOLLOW 4 | . . . . . . . . . . . . . . . 3 . . . . 1 . . . . . . . . . . . AID 2 | . . . . . . . . . . . . . . . . . . . . . . 1 . 1 . . . . . . . EXPLORE 6 | . . . . . . . . . . . . . . . . . . . . 1 3 . . . . . . . . 1 1 RETURN 2 | . . . . . . . . . . . . . . . . . . . . . 1 . . . . . . . . 1 . Ally Attacks 233 | . . . . . . . . . . 5 7 . 4 . 103 80 23 . 1 . 3 6 . 1 . . . . . . . Total Damage 7835 | . . . . . . . . . . 46 346 . 57 . 4856 1689 472 . 51 . 168 120 . 30 . . . . . . . Kills 36 | . . . . . . . . . . 1 3 . 1 . 17 11 3 . . . . . . . . . . . . . . Allies Corrupted 5 | . . . . . . . . . . . . . . . . . . . . . . 3 . 2 . . . . . . . Allies Melted 3 | . . . . . . . . . . . 1 . . . . . . . . 1 . 1 . . . . . . . . . Intel | -11 -10 -10 -10 -9 -8 -7 -7 -7 -7 -6 -6 -6 -6 -6 -6 -5 -5 -5 -5 -5 -4 -4 -4 -4 -4 -4 -4 -3 -3 -3 -2 ------- Run | Jun Mat Min Exi Min Mat Fac Low Low Dat Pro Fac Low Low Zio Dee Pro Fac Upp Upp War Pro Fac Was Fac Upp Upp Zhi Pro Res Qua Res Robot Analysis Total 18 | . . . . . . 1 . . . . . . . . . . 3 . . . . 6 . 1 . . 3 . 3 1 . Derelict Logs Recovered 22 | . . . . 1 . . 2 2 . 2 . 2 2 1 . 1 . 2 1 . 1 . . . 3 2 . . . . . Drone Launches 47 | . . . . . . . . . . . . . . . . . . . . 3 26 . . . . . . . . 11 7 Drone Recoveries 35 | . . . . . . . . . . . . . . . . . . . . 1 24 . . . . . . . . 6 4 Exploration | -11 -10 -10 -10 -9 -8 -7 -7 -7 -7 -6 -6 -6 -6 -6 -6 -5 -5 -5 -5 -5 -4 -4 -4 -4 -4 -4 -4 -3 -3 -3 -2 ------------- Run | Jun Mat Min Exi Min Mat Fac Low Low Dat Pro Fac Low Low Zio Dee Pro Fac Upp Upp War Pro Fac Was Fac Upp Upp Zhi Pro Res Qua Res Turns Passed 24597 | . 1274 715 1691 685 1100 1049 362 243 17 404 770 215 341 547 1096 1053 2412 326 234 458 691 1864 74 1386 360 230 103 228 2168 2156 345 Spaces Moved 28017 | 1 451 242 691 342 546 820 1155 764 66 552 712 609 644 909 1729 1165 3342 827 589 680 1049 2864 115 1842 807 566 188 511 1581 1385 273 Core . | . . . . . . . . . . . . . . . . . . . . . . . . . . . . . . . . Treads 469 | . . 28 441 . . . . . . . . . . . . . . . . . . . . . . . . . . . . Legs 5134 | 1 451 214 250 342 546 470 . . . . . . . . . . . . . . . . . 8 . . . . 1198 1381 273 Wheels . | . . . . . . . . . . . . . . . . . . . . . . . . . . . . . . . . Hover 16246 | . . . . . . . . . . . . . . . 1326 1165 3342 827 589 680 1049 2864 115 1834 807 566 188 511 383 . . Flight 6164 | . . . . . . 350 1155 764 66 552 712 609 644 909 403 . . . . . . . . . . . . . . . . Fastest Speed 10 | 120 120 240 120 200 130 26 26 26 26 26 20 20 20 20 10 36 36 36 36 36 34 33 36 30 37 37 31 34 29 110 110 Average Speed 58 | 120 244 257 226 200 167 96 26 26 26 26 21 20 20 20 29 37 36 36 36 36 36 35 36 47 37 37 34 35 107 111 110 Slowest Speed 400 | 120 400 260 320 200 200 193 26 106 26 26 26 20 20 20 60 40 40 36 36 36 40 81 36 112 37 37 37 37 126 112 110 Overloaded Moves . | . . . . . . . . . . . . . . . . . . . . . . . . . . . . . . . . Propulsion Burnouts . | . . . . . . . . . . . . . . . . . . . . . . . . . . . . . . . . Robots Hopped 5 | . . . . . . . 1 . . . 3 . 1 . . . . . . . . . . . . . . . . . . Cave-ins Triggered . | . . . . . . . . . . . . . . . . . . . . . . . . . . . . . . . . Spacefolds 2 | . . . . . . . . . . . . . . . . . . . . . . . . . . . . . . 2 . Exploration Rate (%) 72 | 1 82 50 90 77 57 29 96 86 66 87 20 75 82 86 92 96 76 94 67 97 98 77 83 66 93 84 63 78 45 99 13 Regions Visited 31 Branch Regions 21 Pre-discovered Areas 7 | . . . . . . . . . 1 1 . . . . . . . 1 . . . . . . 1 . 3 . . . . Known Exits Taken 25 | . 1 . . . 1 1 1 1 1 1 1 1 1 1 1 1 1 1 1 1 1 . . 1 1 1 1 1 1 1 . Unknown Exits Taken 4 | 1 . 1 1 1 . . . . . . . . . . . . . . . . . . . . . . . . . . . Scrap Searched 52 | . . 1 . 2 . . 3 2 . 4 . 9 7 4 . 5 . 4 1 . 3 . . . 2 4 . 1 . . . Spaces Dug 16 | . . . . . . . . 1 . . . . . . . . 7 . . . . 1 . . . 1 . . 4 2 . Terrain Destroyed 451 | . . 50 . . 19 3 1 1 . . 22 14 11 . . 4 30 . 10 . 3 202 3 32 5 2 . 7 21 11 . Melee 1 | . . . . . . . . . . . . . . . . . 1 . . . . . . . . . . . . . . Projectile 136 | . . . . . 19 3 1 1 . . . . . . . 4 24 . . . . 21 3 23 5 2 . 7 12 11 . AOE 314 | . . 50 . . . . . . . . 22 14 11 . . . 5 . 10 . 3 181 . 9 . . . . 9 . . Terrain Rammed . | . . . . . . . . . . . . . . . . . . . . . . . . . . . . . . . . Walls Destroyed . | . . . . . . . . . . . . . . . . . . . . . . . . . . . . . . . . Machines Disabled . | . . . . . . . . . . . . . . . . . . . . . . . . . . . . . . . . Actions | -11 -10 -10 -10 -9 -8 -7 -7 -7 -7 -6 -6 -6 -6 -6 -6 -5 -5 -5 -5 -5 -4 -4 -4 -4 -4 -4 -4 -3 -3 -3 -2 --------- Run | Jun Mat Min Exi Min Mat Fac Low Low Dat Pro Fac Low Low Zio Dee Pro Fac Upp Upp War Pro Fac Was Fac Upp Upp Zhi Pro Res Qua Res Total 35175 | . 532 288 792 344 693 1009 1194 786 65 808 1301 689 853 1271 2271 1740 4343 854 610 893 1358 3656 141 2273 853 579 224 539 1965 1937 314 Wait 5351 | . 14 3 38 3 69 56 20 . . 251 546 62 174 352 378 542 782 26 19 188 280 646 22 300 27 8 25 14 227 268 11 Move 27975 | . 450 241 690 341 545 819 1152 763 65 551 706 608 641 908 1728 1164 3340 826 588 679 1048 2864 114 1841 806 565 187 510 1580 1382 273 Hop 4 | . . . . . . . 1 . . . 2 . 1 . . . . . . . . . . . . . . . . . . Pick Up 179 | . 5 1 19 . 4 11 . 2 . 1 7 . 2 2 26 3 19 . 1 10 . 18 . 11 . . 2 1 17 15 2 Fast Attach 232 | . 5 1 10 . 11 12 1 2 . . 8 2 6 1 18 3 18 . . 5 . 8 . 4 4 . 3 . 11 94 5 Attach 124 | . 1 4 1 . 12 6 . 1 . . 4 . 1 1 17 2 13 . 1 . 1 10 . 23 . . 1 . 12 9 4 Detach 76 | . . 3 3 . 9 6 . 1 . . 1 1 1 2 15 . 2 . . 1 . 6 . 8 . . 2 . 3 10 2 Swap 63 | . 1 1 . . 1 . 1 . . . 2 1 . 2 3 3 13 1 . 2 1 15 . 9 1 . . . 3 3 . Drop 281 | . 4 . 8 . 11 7 . 2 . 1 5 2 6 . 37 5 17 . 1 8 . 13 . 8 4 . 3 . 23 106 10 Fire 704 | . 52 32 23 . 30 47 19 15 . 4 20 11 . . 3 16 119 . . . . 64 5 67 11 6 1 14 89 49 7 Melee 57 | . . . . . . . . . . . . . 1 3 46 2 2 . . . . 2 . 1 . . . . . . . Ram . | . . . . . . . . . . . . . . . . . . . . . . . . . . . . . . . . Kick 46 | . . . . . 1 45 . . . . . . . . . . . . . . . . . . . . . . . . . Crush 2 | . . 2 . . . . . . . . . . . . . . . . . . . . . . . . . . . . . Escape Stasis 3 | . . . . . . . . . . . . . . . . . 3 . . . . . . . . . . . . . . Rewire 72 | . . . . . . . . . . . . 2 20 . . . 13 1 . . 28 7 . 1 . . . . . . . Trap . | . . . . . . . . . . . . . . . . . . . . . . . . . . . . . . . . Miscellaneous 6 | . . . . . . . . . . . . . . . . . 2 . . . . 3 . . . . . . . 1 . Route ------- -11/Junkyard -10/Materials (discovered 5 exits: [*Mat x3] / *Min x2) -10/Mines (discovered 2 exits: [*Mat] / *Exi) -10/Exiles -9/Mines -8/Materials (discovered 3 exits: *Fac x3) -7/Factory (discovered 8 exits: Fac x4 / Sto x2 / *Low x2) -7/Lower Caves (discovered 2 exits: *Low / *Zio) -7/Lower Caves (discovered 2 exits: *Fac / *Dat) -7/Data Miner -6/Proximity Caves -6/Factory (discovered 6 exits: Fac x4 / *Low x2) -6/Lower Caves -6/Lower Caves (discovered 2 exits: *Fac / *Zio) -6/Zion (discovered 2 exits: *Dee / *Pro) -6/Deep Caves -5/Proximity Caves -5/Factory (discovered 8 exits: *Fac x4 / *Upp x2 / *Ext x2) -5/Upper Caves -5/Upper Caves (discovered 2 exits: *Fac / *War) -5/Warlord -4/Proximity Caves -4/Factory (discovered 6 exits: *Res x4 / *Upp x2) -4/Waste -4/Factory (discovered 5 exits: *Res x3 / *Upp x2) -4/Upper Caves -4/Upper Caves (discovered 2 exits: *Res / *Zhi) -4/Zhirov -3/Proximity Caves -3/Research (discovered 6 exits: *Res x3 / Arm / *Qua x2) -3/Quarantine -2/Research (discovered 1 exit: *Acc) History --------- Turn | Location | Event 1 | -11/Junkyard | Discovered new exit (range 0) 1 | -11/Junkyard | Entered Materials 75 | -10/Materials | Identified exit to Mines 252 | -10/Materials | Discovered new exit (range 5) 307 | -10/Materials | Build established: Mutant 494 | -10/Materials | Discovered new exit (range 8) 575 | -10/Materials | Lost 4 parts (1p1n2w) 885 | -10/Materials | Discovered new exit (range 14) 1275 | -10/Materials | Entered Mines 1356 | -10/Mines | Found a damaged Exp. Sensor Array with a note attached 1361 | -10/Mines | Found Prototype Device 1362 | -10/Mines | Identified Exp. Sensor Array 1440 | -10/Mines | Discovered new exit (range 5) 1561 | -10/Mines | Found the Drone Emporium 1573 | -10/Mines | Found Prototype Device 1573 | -10/Mines | Identified Sensor Drone Bay 1744 | -10/Mines | Deemed a non-threat by the Exiles lab entrance 1744 | -10/Mines | Discovered new exit (range 5) 1792 | -10/Mines | Assembled infested the area 1902 | -10/Mines | Lost 3 parts (1p1n1w) 1920 | -10/Mines | Destroyed 7 combat bots 1990 | -10/Mines | Entered Exiles 2058 | -10/Exiles | Met 8R-AWN 2094 | -10/Exiles | Met EX-HEX 2181 | -10/Exiles | Met EX-DEC 2281 | -10/Exiles | Met EX-BIN 2317 | -10/Exiles | Aligned with FarCom system 2320 | -10/Exiles | Given EX-Vault access code 2375 | -10/Exiles | Opened EX-Vault 2394 | -10/Exiles | Found Trap Reconfigurator 2448 | -10/Exiles | Warned to stay clear of 0b10 Research branches 2632 | -10/Exiles | Discovered new exit (range 14) 2889 | -10/Exiles | Visited The Gauntlet 3038 | -10/Exiles | Attacked by the Exiles 3079 | -10/Exiles | Destroyed 7 combat bots 3079 | -10/Exiles | Destroyed 8R-AWN 3119 | -10/Exiles | Core integrity fell below 50% 3121 | -10/Exiles | Core integrity fell below 20% 3122 | -10/Exiles | Found Prototype Ballistic Gun 3122 | -10/Exiles | Identified 8R-AWN's Boregun 3131 | -10/Exiles | Found Prototype Processor 3131 | -10/Exiles | Identified Exp. Targeting Computer 3333 | -10/Exiles | Destroyed EX-HEX 3349 | -10/Exiles | Destroyed EX-DEC 3376 | -10/Exiles | Destroyed EX-BIN 3378 | -10/Exiles | Found Prototype Energy Gun 3378 | -10/Exiles | Identified AWS/EX-DEC 3389 | -10/Exiles | Found Prototype Device 3398 | -10/Exiles | Found Prototype Processor 3526 | -10/Exiles | Found Prototype Protection 3529 | -10/Exiles | Found Prototype Device 3534 | -10/Exiles | Found Prototype Protection 3550 | -10/Exiles | Found 8R-AWN's Boregun 3681 | -10/Exiles | Left Exiles lab with Trap Reconfigurator 3681 | -10/Exiles | Entered Mines 3806 | -9/Mines | Build established: Hauler-Mutant 3873 | -9/Mines | Learned 2 Materials zone layouts 3919 | -9/Mines | Found a hidden stash of uninstalled traps 4222 | -9/Mines | Received a Rocket Launcher from a helpful Derelict 4314 | -9/Mines | Discovered new exit (range 8) 4366 | -9/Mines | Entered Materials 4366 | -8/Materials | Evolved 4 slots: Propulsion x1, Utility x3 4366 | -8/Materials | Identified 8R-AWN's Armor/EX 4368 | -8/Materials | Identified 8R-AWN's Armor/TH 4370 | -8/Materials | Identified System Purifier 4372 | -8/Materials | Identified AS-neutralizer No. 17b 4375 | -8/Materials | Identified Exp. Core Analyzer 4676 | -8/Materials | Discovered new exit (range 15) 4873 | -8/Materials | Repaired Adv. Myomer Leg 4936 | -8/Materials | Repaired Broken Exp. Heat Sink? 5399 | -8/Materials | Discovered new exit (range 8) 5403 | -8/Materials | Identified exit to Factory 5465 | -8/Materials | System corruption reached 10% 5466 | -8/Materials | Entered Factory 5466 | -7/Factory | Accompanied by 1 ally 5466 | -7/Factory | Evolved 2 slots: Propulsion x1, Utility x1 5712 | -7/Factory | Identified exit to Storage 5712 | -7/Factory | Identified exit to Lower Caves 6011 | -7/Factory | Build established: Wizard-Mutant 6301 | -7/Factory | Cargo convoy interrupted 6490 | -7/Factory | Identified exit to Factory 6515 | -7/Factory | Entered Lower Caves 6550 | -7/Lower Caves | A Derelict revealed a hidden shortcut to a safe place 6555 | -7/Lower Caves | Identified exit to Zion 6648 | -7/Lower Caves | Spotted B-75 Beast 6648 | -7/Lower Caves | Destroyed B-75 Beast 6665 | -7/Lower Caves | Identified exit to Lower Caves 6679 | -7/Lower Caves | Build established: Wizard-Sprinter 6695 | -7/Lower Caves | Learned Factory stockpile data 6772 | -7/Lower Caves | Ambushed by wild Derelicts 6877 | -7/Lower Caves | Entered another Lower Caves area 6903 | -7/Lower Caves | Discovered exit to Factory (range 13) 6909 | -7/Lower Caves | Learned Factory terminal intel 6985 | -7/Lower Caves | Found Alien Artifact 7043 | -7/Lower Caves | Spotted B-75 Beast 7044 | -7/Lower Caves | Core integrity fell below 50% 7048 | -7/Lower Caves | Destroyed B-75 Beast 7069 | -7/Lower Caves | Learned Factory emergency access door positions 7074 | -7/Lower Caves | Encountered a Warlord checkpoint 7094 | -7/Lower Caves | Discovered new exit (range 15) 7095 | -7/Lower Caves | Spotted G1-T2Y(f) 7095 | -7/Lower Caves | Spotted Q1-GM3(f) 7095 | -7/Lower Caves | Spotted O3-Z1R(f) 7095 | -7/Lower Caves | Destroyed O3-Z1R(f) 7095 | -7/Lower Caves | Spotted AI-TCA(f) 7096 | -7/Lower Caves | Spotted 0X-0ON(f) 7097 | -7/Lower Caves | Encountered a Master Thief 7097 | -7/Lower Caves | Encountered a Master Thief 7097 | -7/Lower Caves | Encountered a Master Thief 7097 | -7/Lower Caves | Encountered a Master Thief 7099 | -7/Lower Caves | Destroyed AI-TCA(f) 7101 | -7/Lower Caves | Destroyed G1-T2Y(f) 7105 | -7/Lower Caves | Destroyed Q1-GM3(f) 7109 | -7/Lower Caves | Destroyed 0X-0ON(f) 7120 | -7/Lower Caves | Identified exit to Data Miner 7120 | -7/Lower Caves | Entered Data Miner 7120 | -7/Data Miner | Discovered new exit (range 6) 7125 | -7/Data Miner | Met Data Miner 7130 | -7/Data Miner | Learned location of Section 7 (-2) 7130 | -7/Data Miner | Acquired the access code to Warlord's prototype stash 7132 | -7/Data Miner | Received God Mode back door access code from Data Miner 7137 | -7/Data Miner | Identified exit to Proximity Caves 7137 | -7/Data Miner | Entered Proximity Caves 7139 | -6/Proximity Caves | Learned location of Zion (-6) 7182 | -6/Proximity Caves | Learned Factory stockpile data 7392 | -6/Proximity Caves | Received a Behemoth hack from an annoying Tinkerer 7430 | -6/Proximity Caves | Escorted by Enhanced Grunt 7454 | -6/Proximity Caves | Discovered exit to Factory (range 7) 7541 | -6/Proximity Caves | Entered Factory 7541 | -6/Factory | Accompanied by 1 ally 7541 | -6/Factory | Evolved 2 slots: Propulsion x2 7544 | -6/Factory | Loaded intel: 26 terminal locations 7585 | -6/Factory | Identified exit to Lower Caves 7643 | -6/Factory | Identified exit to Factory 7796 | -6/Factory | Repaired Cld. Cesium-ion Thruster 7835 | -6/Factory | Repaired Imp. Datajack 7915 | -6/Factory | Repaired Cld. Cesium-ion Thruster 7995 | -6/Factory | Repaired Cld. Cesium-ion Thruster 8103 | -6/Factory | Repaired Exp. Sensor Array 8171 | -6/Factory | Repaired Adv. Component Analysis Suite 8239 | -6/Factory | Repaired Adv. Weapon Cycler 8311 | -6/Factory | Entered Lower Caves 8332 | -6/Lower Caves | Encountered a Warlord checkpoint 8379 | -6/Lower Caves | Learned Factory security intel 8415 | -6/Lower Caves | Learned Factory emergency access door positions 8486 | -6/Lower Caves | Discovered new exit (range 3) 8486 | -6/Lower Caves | Identified exit to Lower Caves 8493 | -6/Lower Caves | Attracted the attention of an 0b10 outpost 8525 | -6/Lower Caves | Destroyed 7 combat bots 8526 | -6/Lower Caves | Entered another Lower Caves area 8526 | -6/Lower Caves | Accompanied by 2 allies 8538 | -6/Lower Caves | Discovered exit to Factory (range 12) 8559 | -6/Lower Caves | Learned Factory trap positions 8585 | -6/Lower Caves | Destroyed 7 combat bots 8676 | -6/Lower Caves | Attacked by a delusional Derelict stockpiling Unaware 8713 | -6/Lower Caves | Discovered exit to Zion (range 9) 8731 | -6/Lower Caves | Acquired the password to a Derelict Tinkerer's latest research 8733 | -6/Lower Caves | Found Prototype Special Weapon 8817 | -6/Lower Caves | Build established: Hauler-Sprinter 8867 | -6/Lower Caves | Entered Zion 8867 | -6/Zion | Accompanied by 7 allies 8871 | -6/Zion | Found CR-A16's Pointy Stick 8903 | -6/Zion | Given A8's code to call for help 8904 | -6/Zion | Discovered new exit (range 14) 8912 | -6/Zion | Identified exit to Proximity Caves 8989 | -6/Zion | Learned Factory stockpile data 9008 | -6/Zion | Acquired unknown access codes intercepted by a Zionite 9157 | -6/Zion | Opened final containment barrier to the Deep Caves 9160 | -6/Zion | Discovered new exit (range 3) 9160 | -6/Zion | Saw the warning signs outside the Deep Caves entrance 9160 | -6/Zion | Identified exit to Deep Caves 9414 | -6/Zion | Entered Deep Caves 9414 | -6/Deep Caves | Accompanied by 7 allies 9415 | -6/Deep Caves | Met 5H-AD0 9532 | -6/Deep Caves | Z-Facility disabled 9576 | -6/Deep Caves | Attacked by Z-Imprinter 9581 | -6/Deep Caves | Destroyed Z-Imprinter 9593 | -6/Deep Caves | Found Zio. Metafield Generator 9600 | -6/Deep Caves | Identified Molecular Deconstructor 9690 | -6/Deep Caves | Identified Core Expander 9690 | -6/Deep Caves | Installed Core Expander, added new Propulsion slot 9734 | -6/Deep Caves | Found Zio. Weapon Casing 9795 | -6/Deep Caves | Found Prototype Protection 9795 | -6/Deep Caves | Identified Zio. Heavy Carapace 10054 | -6/Deep Caves | Spotted as-17233 10081 | -6/Deep Caves | Found GOLEM Unit 10085 | -6/Deep Caves | Triggered Deep Caves wall 10088 | -6/Deep Caves | Exposed GOLEM chamber 10089 | -6/Deep Caves | Spotted AS-54324 10089 | -6/Deep Caves | Spotted AS-89279 10089 | -6/Deep Caves | Found GOLEM Unit 10091 | -6/Deep Caves | Destroyed AS-54324 10092 | -6/Deep Caves | Spotted as-77765 10097 | -6/Deep Caves | Destroyed AS-89279 10103 | -6/Deep Caves | Found GOLEM Unit 10105 | -6/Deep Caves | Found GOLEM Unit 10198 | -6/Deep Caves | Installed Com. Matter Pod, increased matter storage capacity (+150) 10284 | -6/Deep Caves | Found Zio. Heavy Carapace 10293 | -6/Deep Caves | Found Zio. Weapon Casing 10402 | -6/Deep Caves | Discovered new exit (range 6) 10405 | -6/Deep Caves | Identified exit to Proximity Caves 10491 | -6/Deep Caves | Build established: Commander-Mutant 10510 | -6/Deep Caves | Entered Proximity Caves 10510 | -5/Proximity Caves | Accompanied by 11 allies (5H-AD0) 10515 | -5/Proximity Caves | Thanked by 5H-AD0 10662 | -5/Proximity Caves | Attracted the attention of an 0b10 checkpoint 10716 | -5/Proximity Caves | Learned Factory garrison access intel 10932 | -5/Proximity Caves | Build established: Hauler-Mutant 10985 | -5/Proximity Caves | Spotted B-75 Beast 11001 | -5/Proximity Caves | Allies destroyed B-75 Beast 11127 | -5/Proximity Caves | Discovered exit to Factory (range 6) 11563 | -5/Proximity Caves | Entered Factory 11563 | -5/Factory | Accompanied by 6 allies 11563 | -5/Factory | Evolved 2 slots: Utility x2 11564 | -5/Factory | Identified exit to Upper Caves 11565 | -5/Factory | Loaded intel: 110 trap records 11569 | -5/Factory | Loaded intel: 4 garrison access locations 11677 | -5/Factory | Build established: Scavenger-Mutant 11741 | -5/Factory | Discovered new exit (range 9) 11825 | -5/Factory | Identified exit to Factory 11841 | -5/Factory | Discovered new exit (range 6) 11842 | -5/Factory | Identified exit to Extension 11997 | -5/Factory | Garrison activated, responded to threat 12128 | -5/Factory | Build established: Wizard-Mutant 12137 | -5/Factory | Spotted B-75 Beast 12160 | -5/Factory | Destroyed B-75 Beast 12255 | -5/Factory | Discovered exit to Upper Caves (range 13) 12319 | -5/Factory | Lost 4 parts (2u2w) 12383 | -5/Factory | Cargo convoy interrupted 12415 | -5/Factory | Found Exp. ECM Suite 12423 | -5/Factory | Found Prototype Device 12423 | -5/Factory | Identified Exp. Actuator Array 12463 | -5/Factory | First assault squad dispatched 12517 | -5/Factory | Repaired Exp. Power Shielding? 12609 | -5/Factory | Fabricated Exp. Sensor Array (x1) 12650 | -5/Factory | Repaired Broken Exp. Cooling System 12705 | -5/Factory | Found Exp. Core Analyzer 12709 | -5/Factory | Found Exp. Core Analyzer 12717 | -5/Factory | Found Exp. Core Analyzer 12791 | -5/Factory | Incoming assault squad redirected 13738 | -5/Factory | Destroyed 7 combat bots 13777 | -5/Factory | Repaired Broken Cld. Gravmag System 13975 | -5/Factory | Entered Upper Caves 14030 | -5/Upper Caves | Learned location of 1 exit from Factory 14059 | -5/Upper Caves | Learned location of Warlord (-5) 14092 | -5/Upper Caves | Learned Factory security intel 14092 | -5/Upper Caves | Learned Factory garrison access intel 14115 | -5/Upper Caves | Attracted the attention of an 0b10 checkpoint 14204 | -5/Upper Caves | Discovered new exit (range 4) 14205 | -5/Upper Caves | Identified exit to Upper Caves 14228 | -5/Upper Caves | Encountered a Warlord checkpoint 14301 | -5/Upper Caves | Entered another Upper Caves area 14301 | -5/Upper Caves | Accompanied by 1 ally 14323 | -5/Upper Caves | Discovered exit to Factory (range 7) 14348 | -5/Upper Caves | Encountered a Warlord checkpoint 14471 | -5/Upper Caves | Identified exit to Warlord 14535 | -5/Upper Caves | Entered Warlord 14576 | -5/Warlord | Received a Watcher feed algorithm from an ecstatic Tinkerer 14742 | -5/Warlord | Found Prototype Energy Gun 14772 | -5/Warlord | Learned Research emergency access door positions 14773 | -5/Warlord | Learned 4 Armory zone layouts 14773 | -5/Warlord | Learned 4 Research zone layouts 14773 | -5/Warlord | Learned 4 Research zone layouts 14773 | -5/Warlord | Learned 4 Research zone layouts 14773 | -5/Warlord | Learned Research security intel 14773 | -5/Warlord | Learned Factory fabricator intel 14773 | -5/Warlord | Learned Armory fabricator intel 14773 | -5/Warlord | Learned Research garrison access intel 14808 | -5/Warlord | Warlord's base attacked by MAIN.C 14833 | -5/Warlord | Met Warlord 14850 | -5/Warlord | Found Prototype Energy Cannon 14850 | -5/Warlord | Identified Vortex Driver 14858 | -5/Warlord | Found Vortex Driver 14860 | -5/Warlord | Found Prototype Energy Gun 14861 | -5/Warlord | Found Prototype Energy Gun 14881 | -5/Warlord | Opened Warlord's prototype stash 14883 | -5/Warlord | Found Prototype Reactor 14885 | -5/Warlord | Found Prototype Processor 14887 | -5/Warlord | Found Prototype Hackware 14983 | -5/Warlord | Opened side exit 14990 | -5/Warlord | Discovered new exit (range 10) 14993 | -5/Warlord | Identified exit to Proximity Caves 14993 | -5/Warlord | Entered Proximity Caves 15139 | -4/Proximity Caves | Build established: Hauler-Mutant 15188 | -4/Proximity Caves | Attracted the attention of an 0b10 checkpoint 15213 | -4/Proximity Caves | Spotted B-86 Titan 15224 | -4/Proximity Caves | Destroyed B-86 Titan 15234 | -4/Proximity Caves | Discovered exit to Factory (range 5) 15326 | -4/Proximity Caves | Destroyed 8 combat bots 15383 | -4/Proximity Caves | Learned Research emergency access door positions 15684 | -4/Proximity Caves | Entered Factory 15684 | -4/Factory | Accompanied by 5 allies 15684 | -4/Factory | Evolved 2 slots: Utility x1, Weapon x1 15685 | -4/Factory | Identified exit to Research 15688 | -4/Factory | Loaded intel: 6 fabricator locations 15689 | -4/Factory | Loaded intel: 4 garrison access locations 15704 | -4/Factory | Identified Vortex Rifle (x2) 15758 | -4/Factory | Repaired Exp. Cooling System 15786 | -4/Factory | Spotted B-86 Titan 15938 | -4/Factory | Garrison activated, responded to threat 16163 | -4/Factory | Identified Plasma Storm 16163 | -4/Factory | Identified System Mapper 16163 | -4/Factory | Identified Exp. Target Analyzer 16163 | -4/Factory | Identified Vortex Chain Reactor 16241 | -4/Factory | Build established: Wizard-Scout 16259 | -4/Factory | Repaired Exp. Power Shielding 16309 | -4/Factory | Discovered new exit (range 23) 16441 | -4/Factory | Destroyed 11 combat bots 16496 | -4/Factory | Destroyed 10 combat bots 16499 | -4/Factory | Identified exit to Upper Caves 16501 | -4/Factory | Cargo convoy interrupted 16527 | -4/Factory | Spotted B-86 Titan 16527 | -4/Factory | Destroyed B-86 Titan 16539 | -4/Factory | Found Prototype Device 16539 | -4/Factory | Identified Exp. Transmission Jammer 16650 | -4/Factory | Build established: Hauler-Scout 16684 | -4/Factory | First assault squad dispatched 16849 | -4/Factory | Destroyed 8 combat bots 17094 | -4/Factory | Destroyed 11 combat bots 17226 | -4/Factory | Build established: Wizard-Scout 17280 | -4/Factory | Destroyed B-86 Titan 17383 | -4/Factory | Fabricated M-36 Artificer (x1) 17442 | -4/Factory | Fabricated Cmb. Linear Gravjet (x2) 17548 | -4/Factory | Sucked down chute 17548 | -4/Factory | Entered Waste 17548 | -4/Waste | Met up with 3 allies sucked down the chute earlier 17549 | -4/Waste | Spotted C-40 Crusher 17555 | -4/Waste | Destroyed C-40 Crusher 17557 | -4/Waste | Spotted C-40 Crusher 17558 | -4/Waste | Destroyed C-40 Crusher 17563 | -4/Waste | EMP discharged 17565 | -4/Waste | 1 allies followed down the chute 17565 | -4/Waste | Spotted C-40 Crusher 17565 | -4/Waste | Spotted C-40 Crusher 17566 | -4/Waste | Destroyed C-40 Crusher 17566 | -4/Waste | Destroyed C-40 Crusher 17569 | -4/Waste | Spotted C-40 Crusher 17571 | -4/Waste | Destroyed C-40 Crusher 17581 | -4/Waste | Spotted C-40 Crusher 17581 | -4/Waste | Destroyed C-40 Crusher 17586 | -4/Waste | Discovered new exit (range 13) 17599 | -4/Waste | Identified exit to Factory 17602 | -4/Waste | Destroyed 13 combat bots 17622 | -4/Waste | Entered Factory 17622 | -4/Factory | Accompanied by 4 allies 17746 | -4/Factory | Discovered exit to Research (range 11) 17851 | -4/Factory | Repaired Exp. Sensor Array? 18286 | -4/Factory | Build established: Wizard-Skirmisher 18326 | -4/Factory | Spotted B-86 Titan 18328 | -4/Factory | Destroyed B-86 Titan 18451 | -4/Factory | Spotted B-86 Titan 18451 | -4/Factory | Destroyed B-86 Titan 18616 | -4/Factory | Discovered exit to Research (range 23) 18645 | -4/Factory | Build established: Wizard-Scout 18750 | -4/Factory | Discovered exit to Research (range 9) 18988 | -4/Factory | Fabricated Exp. Sensor Array (x1) 19008 | -4/Factory | Entered Upper Caves 19008 | -4/Upper Caves | Accompanied by 1 ally 19020 | -4/Upper Caves | Learned 8 Research zone layouts 19170 | -4/Upper Caves | Learned Research interactive machine intel 19175 | -4/Upper Caves | Discovered new exit (range 22) 19184 | -4/Upper Caves | Attacked by a delusional Derelict stockpiling parts 19207 | -4/Upper Caves | Identified exit to Upper Caves 19242 | -4/Upper Caves | Learned location of Quarantine (-3) 19368 | -4/Upper Caves | Entered another Upper Caves area 19368 | -4/Upper Caves | Accompanied by 1 ally 19368 | -4/Upper Caves | Spotted T1-ERU(f) 19368 | -4/Upper Caves | Spotted 8W-FOQ(f) 19369 | -4/Upper Caves | Encountered a Master Thief 19369 | -4/Upper Caves | Encountered a Master Thief 19370 | -4/Upper Caves | Destroyed 8W-FOQ(f) 19372 | -4/Upper Caves | Destroyed T1-ERU(f) 19384 | -4/Upper Caves | Learned Research emergency access door positions 19399 | -4/Upper Caves | Discovered exit to Research (range 6) 19410 | -4/Upper Caves | Learned 4 Research zone layouts 19530 | -4/Upper Caves | Discovered new exit (range 6) 19532 | -4/Upper Caves | Identified exit to Zhirov 19598 | -4/Upper Caves | Entered Zhirov 19598 | -4/Zhirov | Accompanied by 1 ally 19598 | -4/Zhirov | Discovered new exit (range 3) 19617 | -4/Zhirov | Learned location of Testing (-2) 19617 | -4/Zhirov | Learned location of Command (-1) 19624 | -4/Zhirov | Found Alien Artifact 19631 | -4/Zhirov | Found Alien Artifact 19687 | -4/Zhirov | Identified exit to Proximity Caves 19701 | -4/Zhirov | Entered Proximity Caves 19701 | -3/Proximity Caves | Accompanied by 1 ally 19832 | -3/Proximity Caves | Spotter reported a threat 19843 | -3/Proximity Caves | Learned 8 Research zone layouts 19843 | -3/Proximity Caves | Learned 6 Lower Caves zone layouts 19843 | -3/Proximity Caves | Learned Factory security intel 19843 | -3/Proximity Caves | Learned Research garrison access intel 19843 | -3/Proximity Caves | Learned Extension garrison access intel 19848 | -3/Proximity Caves | Destroyed 9 combat bots 19929 | -3/Proximity Caves | Entered Research 19929 | -3/Research | Accompanied by 1 ally 19929 | -3/Research | Evolved 2 slots: Weapon x2 19930 | -3/Research | Identified exit to Research 19930 | -3/Research | Identified exit to Quarantine 19933 | -3/Research | Loaded intel: 46 interactive machine locations 19934 | -3/Research | Loaded intel: 4 garrison access locations 20020 | -3/Research | Identified exit to Armory 20215 | -3/Research | Destroyed 12 combat bots 20340 | -3/Research | Spotted B-90 Cyclops 20343 | -3/Research | Destroyed B-90 Cyclops 20425 | -3/Research | Build established: Wizard-Mutant 20494 | -3/Research | Identified Integrated Reactor 20494 | -3/Research | Identified Transdimensional Reconstructor 20513 | -3/Research | Installed Integrated Reactor, increased core energy generation (+10) 20592 | -3/Research | Spotted B-86 Titan 20611 | -3/Research | Destroyed B-86 Titan 20679 | -3/Research | First assault squad dispatched 20934 | -3/Research | Repaired Adv. System Restoration Module 21072 | -3/Research | Repaired Broken Cld. Antimatter Reactor? 21458 | -3/Research | Incoming assault squad redirected 21497 | -3/Research | Found Prototype Slashing Weapon 21525 | -3/Research | Identified Vibroblade 21639 | -3/Research | Spotted B-86 Titan 21640 | -3/Research | Destroyed B-86 Titan 21716 | -3/Research | Found Enh. Force Lance 21946 | -3/Research | Incoming assault squad redirected 22097 | -3/Research | Entered Quarantine 22176 | -3/Quarantine | Found Alien Artifact 22181 | -3/Quarantine | Found Transdimensional Reconstructor 22183 | -3/Quarantine | Found Transdimensional Reconstructor 22193 | -3/Quarantine | Found Alien Artifact 22195 | -3/Quarantine | Found Alien Artifact 22197 | -3/Quarantine | Found Alien Artifact 22205 | -3/Quarantine | Repaired Prc. Phase Gun? 22243 | -3/Quarantine | Found Alien Reactor 22519 | -3/Quarantine | Identified Hpw. Transdimensional Reconstructor 22519 | -3/Quarantine | Identified Dimensional Node Initializer (x3) 22519 | -3/Quarantine | Identified Matter Drive 22724 | -3/Quarantine | Found Alien Artifact 22748 | -3/Quarantine | Identified Core Reset Matrix 22876 | -3/Quarantine | Used Core Reset Matrix 22880 | -3/Quarantine | Detected hypermatrix surge 22880 | -3/Quarantine | Sensed 3 artifacts in vicinity 23396 | -3/Quarantine | Found Sigix Broadsword 23520 | -3/Quarantine | Cryocooling Duct disabled 23535 | -3/Quarantine | Ambient heat levels rising (+20) 23535 | -3/Quarantine | Non-combat units ordered to evacuate 23602 | -3/Quarantine | Build established: Wizard-Skirmisher 23617 | -3/Quarantine | Found Sigix Corpse 23623 | -3/Quarantine | Found Sigix Corpse 23694 | -3/Quarantine | Found Transdimensional Reconstructor 23797 | -3/Quarantine | Found Prototype Slashing Weapon 23797 | -3/Quarantine | Identified Nanosword 23927 | -3/Quarantine | Found Unknown Device 23927 | -3/Quarantine | Identified Quantum Capacitor 24021 | -3/Quarantine | Met incapacitated Sigix Warrior 24021 | -3/Quarantine | Lockdown squad dispatched 24021 | -3/Quarantine | Acquired the access code to the Sigix quarantine chamber 24023 | -3/Quarantine | Unlocked Sigix quarantine chamber 24065 | -3/Quarantine | Spotted Lightning 24067 | -3/Quarantine | Spotted Lightning 24069 | -3/Quarantine | Spotted Lightning 24070 | -3/Quarantine | Destroyed Lightning 24072 | -3/Quarantine | Destroyed Lightning 24074 | -3/Quarantine | Destroyed Lightning 24092 | -3/Quarantine | Found Prototype Device 24092 | -3/Quarantine | Identified Exp. Phase Shifter 24097 | -3/Quarantine | Found Prototype Energy Cannon 24097 | -3/Quarantine | Identified EMDS 24104 | -3/Quarantine | Found Prototype Device 24104 | -3/Quarantine | Identified Exp. EM Disruption Field 24119 | -3/Quarantine | Found Exp. Targeting Computer 24130 | -3/Quarantine | Found Exp. Targeting Computer 24253 | -3/Quarantine | Entered Research 24253 | -2/Research | Warlord forces began assault on 0b10 24253 | -2/Research | Evolved 2 slots (calibrated): Power x1, -Propulsion x1, Utility x3, -Weapon x1 24363 | -2/Research | Research machine network offline 24523 | -2/Research | Discovered new exit (range 20) 24567 | -2/Research | Build established: Wizard-Mutant 24567 | -2/Research | Identified exit to Access 24597 | -2/Research | Spotted Striker 24598 | -2/Research | Core destroyed Last Messages --------------- 24561_ P-80 Master sundered. 24561_ P-80 Master destroyed. 24567_ EXIT=IDENTIFIED: ACCESS 24573_ Sensor Drone destroyed. 24573_ K-01 Serf exits level. 24577_ U-05 Engineer exits level. 24579_ K-01 Serf destroyed. 24580_ K-01 Serf exits level. 24594_ U-05 Engineer exits level. 24594_ A-15 Conveyor exits level. 24596_ K-01 Serf exits level. 24596_ Sensor Drone retrieved by Sensor Drone Bay. 24598_ Cogmind sundered. 24598_ Hyb. Antimatter Reactor crushed and broken. 24598_ Com. Linear Accelerator crushed and broken. 24598_ Zio. Metafield Generator crushed and broken. 24598_ Adv. System Restoration Module crushed and broken. 24598_ Transdimensional Reconstructor crushed and broken. 24598_ Vortex Driver crushed and broken. 24598_ Sigix Containment Pod crushed and broken. Map ----- +----------------------------------------------------+ | ?????????????????????????????????????????????????? | | ?????????????????????????????????????????????????? | | ?????????????????????????????????????????????????? | | ?????????????????????????????????????????????????? | | ?????????????????????????????????????????????????? | | ?????????????????????????????????????????????????? | | ?????????????????????????????????????????????????? | | ?????????????????????????????????????????????????? | | ?????????????????????????????????????????????????? | | ?????????????????????????????????????????????????? | | ?????????????????????????????????????????????????? | | ?????????????????????????????????????????????????? | | ?????????????????????????????????????????????????? | | ?????????????????????????????????????????????????? | | ?????????????????????#############???????????????? | | ?????????????????????# #???????????????? | | ?????????????????????# #???????????????? | | ?????????????????????# """"" ] #???????????????? | | ?????????????o???????# """"" #???????????????? | | ?????????????????????# """"" #???????????????? | | ??????????????????????? ?????????????????? | | ????????????????????????? ???????????????????? | | ######?????????????#####?##+#######??????????????? | | # #???????????K?# *!!#!]! +??????????????? | | # #?????????????# !!!!#!&/! ##??????????????? | | # #?????????????#!!!]!@*!!!! #???????????????? | | # #?????????????# !/!=#]!![ #?######????????? | | # #????????? /K /=]#!!! #? [#????????? | | # #???????""##### !!?#&!= + #????##### | | # #?????????????# ?#n** # #????# | | # #?????????????####??#*** + = #????# | | # #????????????######?#*** # #????# | | #+################# ### # #????# | | ! #?########### | | t R < #??????# + | | ## ######## =###+##########???# #### | | ?# # ## ### #???# #??# | | ?# # ## #?# #???# #??# | | ?# """ # ## #?# != #???#n#??##### | | ?# """ # ## #?# ! == #???# #??# | | ?# """ [# ## #?# #???# #??# | | ?# [!##+##### ##############+#???# #??# | | ?# !=*=! # #??# #???# #### | | ?# |!=!% # #??# #???# + * | | ?# ###+#### # !! #??# #???# # | | ?# # ?# [# !! #??# ##### # | | ?#+####+#### ##!=+ !!* #??# + | | ???????????# != ##!*# *! #??# ########## | | ???????????# != ##!=# #??# #????????##### | | ???????????# ! ##%[# #??# #????????????? | +----------------------------------------------------+ Best States ------------- Heat Dissipation 130 Energy Generation 65 Energy Capacity 700 Matter Stores 633 Matter Capacity 850 Sight Range 23 Robot Scan Range 100 Terrain Scan Density 10 Jamming Range 22 Power Amplification 30 EM Shielding 4 Corruption Containment 8 Armor Coverage 1200 Resistance: KI 20 Resistance: TH 100 Resistance: EX 20 Resistance: EM 95 Resistance: I 20 Resistance: S 20 Resistance: P 20 Core Shielding 40 Power Shielding 90 Propulsion Shielding 100 Weapon Shielding 100 Evasion (%) 75 Targeting Accuracy 50 Melee Accuracy 8 Core Analysis 8 Recoil Reduction 6 Energy Filtering 50 Offensive Hacking 210 Authchip Count 1 Item Schematics ----------------- Quantum Reactor | -3/Quarantine | Hacked Biometal Heavy Treads | -3/Quarantine | Hacked Enh. Quantum Rifle | -3/Quarantine | Hacked Linear Accelerator | -3/Quarantine | Hacked Enh. Coil Gun | -3/Quarantine | Archive Adv. Thermal Defense Suite | -3/Quarantine | Archive Adv. Quantum Shading Machine | -3/Quarantine | Hacked Com. Particle Reactor | -3/Quarantine | Archive Lgt. Antimatter Cannon | -3/Quarantine | Archive Coolant Network | -3/Quarantine | Archive Adv. Component Analysis Suite | -3/Quarantine | Hacked Lgt. Quantum Reactor | -3/Quarantine | Hacked Centrium Leg | -3/Quarantine | Hacked Adv. Heavy Siege Treads | -3/Quarantine | Hacked Enh. Nova Cannon | -3/Quarantine | Hacked Robot Schematics ------------------ C-55 Analyst | -3/Quarantine | Archive R-10 Processor | -3/Quarantine | Archive R-06 Scavenger | -3/Quarantine | Hacked A-15 Conveyor | -3/Quarantine | Hacked Fabricated ------------ Exp. Sensor Array | x1 | -5/Factory M-36 Artificer | x1 | -4/Factory | Preloaded Cmb. Linear Gravjet | x2 | -4/Factory Exp. Sensor Array | x1 | -4/Factory Alien Tech Used ----------------- Core Expander Integrated Reactor Core Reset Matrix Achievements -------------- None Challenges ------------ None Game ------ Seed OmegaCargoReconfigurator Manual? 0 Play Time 07:40:58 Cumulative 539.1 hours Start 2023.05.22 @ 06:34:00 End 2023.05.24 @ 22:32:47 Sessions 5 Manual Loads 0 Difficulty Adventurer Special Mode None Game No. 106 Rogue 63 Adventurer 43 Explorer 0 Win Type - Total 20 Types 6/3/1/4/1/0/1/2/2 Lore% 87 Gallery% 93 Achievement% 79 Wizard Run 0 Options --------- ASCII 0 Keyboard 0 Movement Mouse Keybinds 0 Fullscreen 2 Font 18/X11 Map View 76x50 Tactical HUD 1 Map Filters NONE Filters NONE Steam 1 RUN: d49a415c-19ca-494f-9ddd-dad2086d27f7